Workbook

Sheet cadets juniors garcons
D2: COUPE DE FRANCE U15 - U17 - U20 - H&F | K2: 1er Tour | N2: LIEU | V2: DATE
D3: ELIMINATOIRES DE LIGUE GPF / FRANCE | N3: TOULON | V3: 2019-01-16
B5: REG | C5: Licence | D5: Pl | E5: Genre | F5: NOM - Prénom | H5: AN | I5: CLUB | J5: NAT | K5: P.C. | L5: 1 | M5: 2 | N5: 3 | O5: ARR | P5: 1 | Q5: 2 | R5: 3 | S5: EP-J | T5: TOTAL | U5: Serie | V5: Catégorie | W5: IWF | AB5: DEB | AC5: DPT + | AD5: REG + | AE5: IRG + | AF5: FED + | AG5: NAT + | AH5: INTB + | AI5: INTA + | AJ5: OLY +
AB6: DEB | AC6: DEP + | AD6: REG + | AE6: IRG + | AF6: FED + | AG6: NAT + | AH6: INTB + | AI6: INTA + | AJ6: OLY +
B7: SUD PACA | C7: 448831 | D7: 1 | E7: H | F7: REY | G7: Dorian | H7: 2005 | J7: F | K7: 53.2 | L7: 43 | M7: 45 | N7: 48 | O7: =IF(E7="","",IF(MAXA(L7:N7)<=0,0,MAXA(L7:N7))) -> 48 | P7: 55 | Q7: -58 | R7: 58 | S7: =IF(E7="","",IF(MAXA(P7:R7)<=0,0,MAXA(P7:R7))) -> 58 | T7: =IF(E7="","",O7+S7) -> 106 | U7: =+CONCATENATE(AM7," ",AN7) -> IRG + 6 | V7: =IF(E7=0," ",IF(E7="H",IF(H7<1999,VLOOKUP(K7,Minimas!$A$15:$F$29,6),IF(AND(H7>1998,H7<2002),VLOOKUP(K7,Minimas!$A$15:$F$29,5),IF(AND(H7>2001,H7<2004),VLOOKUP(K7,Minimas!$A$15:$F$29,4),IF(AND(H7>2003,H7<2006),VLOOKUP(K7,Minimas!$A$15:$F$29,3),VLOOKUP(K7,Minimas!$A$15:$F$29,2))))),IF(H7<1999,VLOOKUP(K7,Minimas!$G$15:$L$29,6),IF(AND(H7>1998,H7<2002),VLOOKUP(K7,Minimas!$G$15:$L$29,5),IF(AND(H7>2001,H7<2004),VLOOKUP(K7,Minimas!$G$15:$L$29,4),IF(AND(H7>2003,H7<2006),VLOOKUP(K7,Minimas!$G$15:$L$29,3),VLOOKUP(K7,Minimas!$G$15:$L$29,2))))))) -> U15 M55 | W7: =IF(E7=" "," ",IF(E7="H",10^(0.75194503*LOG(K7/175.508)^2)*T7,IF(E7="F",10^(0.783497476* LOG(K7/153.655)^2)*T7,""))) -> 168.7994464 | AB7: =T7-HLOOKUP(V7,Minimas!$C$3:$CD$12,2,FALSE) -> 51 | AC7: =T7-HLOOKUP(V7,Minimas!$C$3:$CD$12,3,FALSE) -> 36 | AD7: =T7-HLOOKUP(V7,Minimas!$C$3:$CD$12,4,FALSE) -> 21 | AE7: =T7-HLOOKUP(V7,Minimas!$C$3:$CD$12,5,FALSE) -> 6 | AF7: =T7-HLOOKUP(V7,Minimas!$C$3:$CD$12,6,FALSE) -> -9 | AG7: =T7-HLOOKUP(V7,Minimas!$C$3:$CD$12,7,FALSE) -> -24 | AH7: =T7-HLOOKUP(V7,Minimas!$C$3:$CD$12,8,FALSE) -> -44 | AI7: =T7-HLOOKUP(V7,Minimas!$C$3:$CD$12,9,FALSE) -> -64 | AJ7: =T7-HLOOKUP(V7,Minimas!$C$3:$CD$12,10,FALSE) -> -169 | AK7: =IF(E7=0," ",IF(AJ7>=0,$AJ$5,IF(AI7>=0,$AI$5,IF(AH7>=0,$AH$5,IF(AG7>=0,$AG$5,IF(AF7>=0,$AF$5,IF(AE7>=0,$AE$5,IF(AD7>=0,$AD$5,IF(AC7>=0,$AC$5,$AB$5))))))))) -> IRG + | AM7: =IF(AK7="","",AK7) -> IRG + | AN7: =IF(E7=0," ",IF(AJ7>=0,AJ7,IF(AI7>=0,AI7,IF(AH7>=0,AH7,IF(AG7>=0,AG7,IF(AF7>=0,AF7,IF(AE7>=0,AE7,IF(AD7>=0,AD7,IF(AC7>=0,AC7,AB7))))))))) -> 6
C8: 443407 | E8: H | F8: NGA NGA | G8: Franck | H8: 2002 | I8: =SUM(W7:W9) -> 500.5762037 | J8: F | K8: 112 | L8: 65 | M8: 70 | N8: -73 | O8: =IF(E8="","",IF(MAXA(L8:N8)<=0,0,MAXA(L8:N8))) -> 70 | P8: 85 | Q8: -88 | R8: 90 | S8: =IF(E8="","",IF(MAXA(P8:R8)<=0,0,MAXA(P8:R8))) -> 90 | T8: =IF(E8="","",O8+S8) -> 160 | U8: DPT + 10 | V8: =IF(E8=0," ",IF(E8="H",IF(H8<1999,VLOOKUP(K8,Minimas!$A$15:$F$29,6),IF(AND(H8>1998,H8<2002),VLOOKUP(K8,Minimas!$A$15:$F$29,5),IF(AND(H8>2001,H8<2004),VLOOKUP(K8,Minimas!$A$15:$F$29,4),IF(AND(H8>2003,H8<2006),VLOOKUP(K8,Minimas!$A$15:$F$29,3),VLOOKUP(K8,Minimas!$A$15:$F$29,2))))),IF(H8<1999,VLOOKUP(K8,Minimas!$G$15:$L$29,6),IF(AND(H8>1998,H8<2002),VLOOKUP(K8,Minimas!$G$15:$L$29,5),IF(AND(H8>2001,H8<2004),VLOOKUP(K8,Minimas!$G$15:$L$29,4),IF(AND(H8>2003,H8<2006),VLOOKUP(K8,Minimas!$G$15:$L$29,3),VLOOKUP(K8,Minimas!$G$15:$L$29,2))))))) -> U17 M>102 | W8: =IF(E8=" "," ",IF(E8="H",10^(0.75194503*LOG(K8/175.508)^2)*T8,IF(E8="F",10^(0.783497476* LOG(K8/153.655)^2)*T8,""))) -> 170.8975488 | AB8: =T8-HLOOKUP(V8,Minimas!$C$3:$CD$12,2,FALSE) -> 30 | AC8: =T8-HLOOKUP(V8,Minimas!$C$3:$CD$12,3,FALSE) -> 10 | AD8: =T8-HLOOKUP(V8,Minimas!$C$3:$CD$12,4,FALSE) -> -15 | AE8: =T8-HLOOKUP(V8,Minimas!$C$3:$CD$12,5,FALSE) -> -35 | AF8: =T8-HLOOKUP(V8,Minimas!$C$3:$CD$12,6,FALSE) -> -55 | AG8: =T8-HLOOKUP(V8,Minimas!$C$3:$CD$12,7,FALSE) -> -75 | AH8: =T8-HLOOKUP(V8,Minimas!$C$3:$CD$12,8,FALSE) -> -100 | AI8: =T8-HLOOKUP(V8,Minimas!$C$3:$CD$12,9,FALSE) -> -130 | AJ8: =T8-HLOOKUP(V8,Minimas!$C$3:$CD$12,10,FALSE) -> -220 | AK8: =IF(E8=0," ",IF(AJ8>=0,$AJ$5,IF(AI8>=0,$AI$5,IF(AH8>=0,$AH$5,IF(AG8>=0,$AG$5,IF(AF8>=0,$AF$5,IF(AE8>=0,$AE$5,IF(AD8>=0,$AD$5,IF(AC8>=0,$AC$5,$AB$5))))))))) -> DPT + | AM8: =IF(AK8="","",AK8) -> DPT + | AN8: =IF(E8=0," ",IF(AJ8>=0,AJ8,IF(AI8>=0,AI8,IF(AH8>=0,AH8,IF(AG8>=0,AG8,IF(AF8>=0,AF8,IF(AE8>=0,AE8,IF(AD8>=0,AD8,IF(AC8>=0,AC8,AB8))))))))) -> 10
C9: 447395 | E9: H | F9: MUSQUIN | G9: Nolan | H9: 2003 | J9: F | K9: 91.4 | L9: 63 | M9: 67 | N9: 70 | O9: 70 | P9: -70 | Q9: -70 | R9: 70 | S9: 70 | T9: 140 | U9: DPT + 0 | V9: =IF(E9=0," ",IF(E9="H",IF(H9<1999,VLOOKUP(K9,Minimas!$A$15:$F$29,6),IF(AND(H9>1998,H9<2002),VLOOKUP(K9,Minimas!$A$15:$F$29,5),IF(AND(H9>2001,H9<2004),VLOOKUP(K9,Minimas!$A$15:$F$29,4),IF(AND(H9>2003,H9<2006),VLOOKUP(K9,Minimas!$A$15:$F$29,3),VLOOKUP(K9,Minimas!$A$15:$F$29,2))))),IF(H9<1999,VLOOKUP(K9,Minimas!$G$15:$L$29,6),IF(AND(H9>1998,H9<2002),VLOOKUP(K9,Minimas!$G$15:$L$29,5),IF(AND(H9>2001,H9<2004),VLOOKUP(K9,Minimas!$G$15:$L$29,4),IF(AND(H9>2003,H9<2006),VLOOKUP(K9,Minimas!$G$15:$L$29,3),VLOOKUP(K9,Minimas!$G$15:$L$29,2))))))) -> U17 M96 | W9: 160.8792085 | AB9: =T9-HLOOKUP(V9,Minimas!$C$3:$CD$12,2,FALSE) -> 20 | AC9: =T9-HLOOKUP(V9,Minimas!$C$3:$CD$12,3,FALSE) -> 0 | AD9: =T9-HLOOKUP(V9,Minimas!$C$3:$CD$12,4,FALSE) -> -25 | AE9: =T9-HLOOKUP(V9,Minimas!$C$3:$CD$12,5,FALSE) -> -45 | AF9: =T9-HLOOKUP(V9,Minimas!$C$3:$CD$12,6,FALSE) -> -65 | AG9: =T9-HLOOKUP(V9,Minimas!$C$3:$CD$12,7,FALSE) -> -85 | AH9: =T9-HLOOKUP(V9,Minimas!$C$3:$CD$12,8,FALSE) -> -110 | AI9: =T9-HLOOKUP(V9,Minimas!$C$3:$CD$12,9,FALSE) -> -140 | AJ9: =T9-HLOOKUP(V9,Minimas!$C$3:$CD$12,10,FALSE) -> -220 | AK9: DPT + | AM9: DPT + | AN9: 0
AB10: DEB | AC10: DEP + | AD10: REG + | AE10: IRG + | AF10: FED + | AG10: NAT + | AH10: INTB + | AI10: INTA + | AJ10: OLY +
B11: SUD PACA | C11: 403856 | E11: H | F11: BIGGI | G11: Marc | H11: 1999 | K11: 73 | L11: 70 | M11: -75 | N11: 75 | O11: 75 | P11: 90 | Q11: 95 | R11: 98 | S11: 98 | T11: =IF(E11="","",O11+S11) -> 173 | U11: REG + 13 | V11: =IF(E11=0," ",IF(E11="H",IF(H11<1999,VLOOKUP(K11,Minimas!$A$15:$F$29,6),IF(AND(H11>1998,H11<2002),VLOOKUP(K11,Minimas!$A$15:$F$29,5),IF(AND(H11>2001,H11<2004),VLOOKUP(K11,Minimas!$A$15:$F$29,4),IF(AND(H11>2003,H11<2006),VLOOKUP(K11,Minimas!$A$15:$F$29,3),VLOOKUP(K11,Minimas!$A$15:$F$29,2))))),IF(H11<1999,VLOOKUP(K11,Minimas!$G$15:$L$29,6),IF(AND(H11>1998,H11<2002),VLOOKUP(K11,Minimas!$G$15:$L$29,5),IF(AND(H11>2001,H11<2004),VLOOKUP(K11,Minimas!$G$15:$L$29,4),IF(AND(H11>2003,H11<2006),VLOOKUP(K11,Minimas!$G$15:$L$29,3),VLOOKUP(K11,Minimas!$G$15:$L$29,2))))))) -> U20 M73 | W11: 222.4253749 | AB11: =T11-HLOOKUP(V11,Minimas!$C$3:$CD$12,2,FALSE) -> 53 | AC11: =T11-HLOOKUP(V11,Minimas!$C$3:$CD$12,3,FALSE) -> 33 | AD11: =T11-HLOOKUP(V11,Minimas!$C$3:$CD$12,4,FALSE) -> 13 | AE11: =T11-HLOOKUP(V11,Minimas!$C$3:$CD$12,5,FALSE) -> -7 | AF11: =T11-HLOOKUP(V11,Minimas!$C$3:$CD$12,6,FALSE) -> -27 | AG11: =T11-HLOOKUP(V11,Minimas!$C$3:$CD$12,7,FALSE) -> -57 | AH11: =T11-HLOOKUP(V11,Minimas!$C$3:$CD$12,8,FALSE) -> -77 | AI11: =T11-HLOOKUP(V11,Minimas!$C$3:$CD$12,9,FALSE) -> -102 | AJ11: =T11-HLOOKUP(V11,Minimas!$C$3:$CD$12,10,FALSE) -> -142 | AK11: REG + | AM11: =IF(AK11="","",AK11) -> REG + | AN11: =IF(E11=0," ",IF(AJ11>=0,AJ11,IF(AI11>=0,AI11,IF(AH11>=0,AH11,IF(AG11>=0,AG11,IF(AF11>=0,AF11,IF(AE11>=0,AE11,IF(AD11>=0,AD11,IF(AC11>=0,AC11,AB11))))))))) -> 13
C12: 443738 | E12: H | F12: GAUTIER | G12: Geremy | H12: 1999 | I12: =SUM(W11:W13) -> 614.2351804 | K12: 71.5 | L12: 55 | M12: 60 | N12: -63 | O12: 60 | P12: 65 | Q12: 70 | R12: 75 | S12: 75 | T12: =IF(E12="","",O12+S12) -> 135 | U12: DEB 15 | V12: =IF(E12=0," ",IF(E12="H",IF(H12<1999,VLOOKUP(K12,Minimas!$A$15:$F$29,6),IF(AND(H12>1998,H12<2002),VLOOKUP(K12,Minimas!$A$15:$F$29,5),IF(AND(H12>2001,H12<2004),VLOOKUP(K12,Minimas!$A$15:$F$29,4),IF(AND(H12>2003,H12<2006),VLOOKUP(K12,Minimas!$A$15:$F$29,3),VLOOKUP(K12,Minimas!$A$15:$F$29,2))))),IF(H12<1999,VLOOKUP(K12,Minimas!$G$15:$L$29,6),IF(AND(H12>1998,H12<2002),VLOOKUP(K12,Minimas!$G$15:$L$29,5),IF(AND(H12>2001,H12<2004),VLOOKUP(K12,Minimas!$G$15:$L$29,4),IF(AND(H12>2003,H12<2006),VLOOKUP(K12,Minimas!$G$15:$L$29,3),VLOOKUP(K12,Minimas!$G$15:$L$29,2))))))) -> U20 M73 | W12: 175.6706693 | AB12: =T12-HLOOKUP(V12,Minimas!$C$3:$CD$12,2,FALSE) -> 15 | AC12: =T12-HLOOKUP(V12,Minimas!$C$3:$CD$12,3,FALSE) -> -5 | AD12: =T12-HLOOKUP(V12,Minimas!$C$3:$CD$12,4,FALSE) -> -25 | AE12: =T12-HLOOKUP(V12,Minimas!$C$3:$CD$12,5,FALSE) -> -45 | AF12: =T12-HLOOKUP(V12,Minimas!$C$3:$CD$12,6,FALSE) -> -65 | AG12: =T12-HLOOKUP(V12,Minimas!$C$3:$CD$12,7,FALSE) -> -95 | AH12: =T12-HLOOKUP(V12,Minimas!$C$3:$CD$12,8,FALSE) -> -115 | AI12: =T12-HLOOKUP(V12,Minimas!$C$3:$CD$12,9,FALSE) -> -140 | AJ12: =T12-HLOOKUP(V12,Minimas!$C$3:$CD$12,10,FALSE) -> -180 | AK12: DEB | AM12: DEB | AN12: 15
C13: 416679 | E13: H | F13: LANGLOIS | G13: Colin | H13: 2001 | K13: 70.7 | L13: 74 | M13: -78 | N13: -78 | O13: 74 | P13: 87 | Q13: 91 | R13: -95 | S13: 91 | T13: 165 | U13: REG + 5 | V13: =IF(E13=0," ",IF(E13="H",IF(H13<1999,VLOOKUP(K13,Minimas!$A$15:$F$29,6),IF(AND(H13>1998,H13<2002),VLOOKUP(K13,Minimas!$A$15:$F$29,5),IF(AND(H13>2001,H13<2004),VLOOKUP(K13,Minimas!$A$15:$F$29,4),IF(AND(H13>2003,H13<2006),VLOOKUP(K13,Minimas!$A$15:$F$29,3),VLOOKUP(K13,Minimas!$A$15:$F$29,2))))),IF(H13<1999,VLOOKUP(K13,Minimas!$G$15:$L$29,6),IF(AND(H13>1998,H13<2002),VLOOKUP(K13,Minimas!$G$15:$L$29,5),IF(AND(H13>2001,H13<2004),VLOOKUP(K13,Minimas!$G$15:$L$29,4),IF(AND(H13>2003,H13<2006),VLOOKUP(K13,Minimas!$G$15:$L$29,3),VLOOKUP(K13,Minimas!$G$15:$L$29,2))))))) -> U20 M73 | W13: 216.1391361 | AB13: =T13-HLOOKUP(V13,Minimas!$C$3:$CD$12,2,FALSE) -> 45 | AC13: =T13-HLOOKUP(V13,Minimas!$C$3:$CD$12,3,FALSE) -> 25 | AD13: =T13-HLOOKUP(V13,Minimas!$C$3:$CD$12,4,FALSE) -> 5 | AE13: =T13-HLOOKUP(V13,Minimas!$C$3:$CD$12,5,FALSE) -> -15 | AF13: =T13-HLOOKUP(V13,Minimas!$C$3:$CD$12,6,FALSE) -> -35 | AG13: =T13-HLOOKUP(V13,Minimas!$C$3:$CD$12,7,FALSE) -> -65 | AH13: =T13-HLOOKUP(V13,Minimas!$C$3:$CD$12,8,FALSE) -> -85 | AI13: =T13-HLOOKUP(V13,Minimas!$C$3:$CD$12,9,FALSE) -> -110 | AJ13: =T13-HLOOKUP(V13,Minimas!$C$3:$CD$12,10,FALSE) -> -150 | AK13: REG + | AM13: REG + | AN13: 5
AB14: DEB | AC14: DEP + | AD14: REG + | AE14: IRG + | AF14: FED + | AG14: NAT + | AH14: INTB + | AI14: INTA + | AJ14: OLY +
B15: SUD PACA | E15: H | O15: 0 | S15: 0 | T15: =IF(E15="","",O15+S15) -> 0 | V15: =IF(E15=0," ",IF(E15="H",IF(H15<1999,VLOOKUP(K15,Minimas!$A$15:$F$29,6),IF(AND(H15>1998,H15<2002),VLOOKUP(K15,Minimas!$A$15:$F$29,5),IF(AND(H15>2001,H15<2004),VLOOKUP(K15,Minimas!$A$15:$F$29,4),IF(AND(H15>2003,H15<2006),VLOOKUP(K15,Minimas!$A$15:$F$29,3),VLOOKUP(K15,Minimas!$A$15:$F$29,2))))),IF(H15<1999,VLOOKUP(K15,Minimas!$G$15:$L$29,6),IF(AND(H15>1998,H15<2002),VLOOKUP(K15,Minimas!$G$15:$L$29,5),IF(AND(H15>2001,H15<2004),VLOOKUP(K15,Minimas!$G$15:$L$29,4),IF(AND(H15>2003,H15<2006),VLOOKUP(K15,Minimas!$G$15:$L$29,3),VLOOKUP(K15,Minimas!$G$15:$L$29,2))))))) ->  | AB15: =T15-HLOOKUP(V15,Minimas!$C$3:$CD$12,2,FALSE) ->  | AC15: =T15-HLOOKUP(V15,Minimas!$C$3:$CD$12,3,FALSE) ->  | AD15: =T15-HLOOKUP(V15,Minimas!$C$3:$CD$12,4,FALSE) ->  | AE15: =T15-HLOOKUP(V15,Minimas!$C$3:$CD$12,5,FALSE) ->  | AF15: =T15-HLOOKUP(V15,Minimas!$C$3:$CD$12,6,FALSE) ->  | AG15: =T15-HLOOKUP(V15,Minimas!$C$3:$CD$12,7,FALSE) ->  | AH15: =T15-HLOOKUP(V15,Minimas!$C$3:$CD$12,8,FALSE) ->  | AI15: =T15-HLOOKUP(V15,Minimas!$C$3:$CD$12,9,FALSE) ->  | AJ15: =T15-HLOOKUP(V15,Minimas!$C$3:$CD$12,10,FALSE) -> 
E16: H | I16: =SUM(W15:W17) ->  | O16: 0 | S16: 0 | T16: =IF(E16="","",O16+S16) -> 0 | V16: =IF(E16=0," ",IF(E16="H",IF(H16<1999,VLOOKUP(K16,Minimas!$A$15:$F$29,6),IF(AND(H16>1998,H16<2002),VLOOKUP(K16,Minimas!$A$15:$F$29,5),IF(AND(H16>2001,H16<2004),VLOOKUP(K16,Minimas!$A$15:$F$29,4),IF(AND(H16>2003,H16<2006),VLOOKUP(K16,Minimas!$A$15:$F$29,3),VLOOKUP(K16,Minimas!$A$15:$F$29,2))))),IF(H16<1999,VLOOKUP(K16,Minimas!$G$15:$L$29,6),IF(AND(H16>1998,H16<2002),VLOOKUP(K16,Minimas!$G$15:$L$29,5),IF(AND(H16>2001,H16<2004),VLOOKUP(K16,Minimas!$G$15:$L$29,4),IF(AND(H16>2003,H16<2006),VLOOKUP(K16,Minimas!$G$15:$L$29,3),VLOOKUP(K16,Minimas!$G$15:$L$29,2))))))) ->  | AB16: =T16-HLOOKUP(V16,Minimas!$C$3:$CD$12,2,FALSE) ->  | AC16: =T16-HLOOKUP(V16,Minimas!$C$3:$CD$12,3,FALSE) ->  | AD16: =T16-HLOOKUP(V16,Minimas!$C$3:$CD$12,4,FALSE) ->  | AE16: =T16-HLOOKUP(V16,Minimas!$C$3:$CD$12,5,FALSE) ->  | AF16: =T16-HLOOKUP(V16,Minimas!$C$3:$CD$12,6,FALSE) ->  | AG16: =T16-HLOOKUP(V16,Minimas!$C$3:$CD$12,7,FALSE) ->  | AH16: =T16-HLOOKUP(V16,Minimas!$C$3:$CD$12,8,FALSE) ->  | AI16: =T16-HLOOKUP(V16,Minimas!$C$3:$CD$12,9,FALSE) ->  | AJ16: =T16-HLOOKUP(V16,Minimas!$C$3:$CD$12,10,FALSE) -> 
E17: H | O17: 0 | S17: 0 | T17: 0 | V17: =IF(E17=0," ",IF(E17="H",IF(H17<1999,VLOOKUP(K17,Minimas!$A$15:$F$29,6),IF(AND(H17>1998,H17<2002),VLOOKUP(K17,Minimas!$A$15:$F$29,5),IF(AND(H17>2001,H17<2004),VLOOKUP(K17,Minimas!$A$15:$F$29,4),IF(AND(H17>2003,H17<2006),VLOOKUP(K17,Minimas!$A$15:$F$29,3),VLOOKUP(K17,Minimas!$A$15:$F$29,2))))),IF(H17<1999,VLOOKUP(K17,Minimas!$G$15:$L$29,6),IF(AND(H17>1998,H17<2002),VLOOKUP(K17,Minimas!$G$15:$L$29,5),IF(AND(H17>2001,H17<2004),VLOOKUP(K17,Minimas!$G$15:$L$29,4),IF(AND(H17>2003,H17<2006),VLOOKUP(K17,Minimas!$G$15:$L$29,3),VLOOKUP(K17,Minimas!$G$15:$L$29,2))))))) ->  | AB17: =T17-HLOOKUP(V17,Minimas!$C$3:$CD$12,2,FALSE) ->  | AC17: =T17-HLOOKUP(V17,Minimas!$C$3:$CD$12,3,FALSE) ->  | AD17: =T17-HLOOKUP(V17,Minimas!$C$3:$CD$12,4,FALSE) ->  | AE17: =T17-HLOOKUP(V17,Minimas!$C$3:$CD$12,5,FALSE) ->  | AF17: =T17-HLOOKUP(V17,Minimas!$C$3:$CD$12,6,FALSE) ->  | AG17: =T17-HLOOKUP(V17,Minimas!$C$3:$CD$12,7,FALSE) ->  | AH17: =T17-HLOOKUP(V17,Minimas!$C$3:$CD$12,8,FALSE) ->  | AI17: =T17-HLOOKUP(V17,Minimas!$C$3:$CD$12,9,FALSE) ->  | AJ17: =T17-HLOOKUP(V17,Minimas!$C$3:$CD$12,10,FALSE) -> 
AB18: DEB | AC18: DEP + | AD18: REG + | AE18: IRG + | AF18: FED + | AG18: NAT + | AH18: INTB + | AI18: INTA + | AJ18: OLY +
B19: SUD PACA | E19: H | O19: 0 | S19: 0 | T19: =IF(E19="","",O19+S19) -> 0 | V19: =IF(E19=0," ",IF(E19="H",IF(H19<1999,VLOOKUP(K19,Minimas!$A$15:$F$29,6),IF(AND(H19>1998,H19<2002),VLOOKUP(K19,Minimas!$A$15:$F$29,5),IF(AND(H19>2001,H19<2004),VLOOKUP(K19,Minimas!$A$15:$F$29,4),IF(AND(H19>2003,H19<2006),VLOOKUP(K19,Minimas!$A$15:$F$29,3),VLOOKUP(K19,Minimas!$A$15:$F$29,2))))),IF(H19<1999,VLOOKUP(K19,Minimas!$G$15:$L$29,6),IF(AND(H19>1998,H19<2002),VLOOKUP(K19,Minimas!$G$15:$L$29,5),IF(AND(H19>2001,H19<2004),VLOOKUP(K19,Minimas!$G$15:$L$29,4),IF(AND(H19>2003,H19<2006),VLOOKUP(K19,Minimas!$G$15:$L$29,3),VLOOKUP(K19,Minimas!$G$15:$L$29,2))))))) ->  | AB19: =T19-HLOOKUP(V19,Minimas!$C$3:$CD$12,2,FALSE) ->  | AC19: =T19-HLOOKUP(V19,Minimas!$C$3:$CD$12,3,FALSE) ->  | AD19: =T19-HLOOKUP(V19,Minimas!$C$3:$CD$12,4,FALSE) ->  | AE19: =T19-HLOOKUP(V19,Minimas!$C$3:$CD$12,5,FALSE) ->  | AF19: =T19-HLOOKUP(V19,Minimas!$C$3:$CD$12,6,FALSE) ->  | AG19: =T19-HLOOKUP(V19,Minimas!$C$3:$CD$12,7,FALSE) ->  | AH19: =T19-HLOOKUP(V19,Minimas!$C$3:$CD$12,8,FALSE) ->  | AI19: =T19-HLOOKUP(V19,Minimas!$C$3:$CD$12,9,FALSE) ->  | AJ19: =T19-HLOOKUP(V19,Minimas!$C$3:$CD$12,10,FALSE) -> 
E20: H | I20: =SUM(W19:W21) ->  | O20: 0 | S20: 0 | T20: =IF(E20="","",O20+S20) -> 0 | V20: =IF(E20=0," ",IF(E20="H",IF(H20<1999,VLOOKUP(K20,Minimas!$A$15:$F$29,6),IF(AND(H20>1998,H20<2002),VLOOKUP(K20,Minimas!$A$15:$F$29,5),IF(AND(H20>2001,H20<2004),VLOOKUP(K20,Minimas!$A$15:$F$29,4),IF(AND(H20>2003,H20<2006),VLOOKUP(K20,Minimas!$A$15:$F$29,3),VLOOKUP(K20,Minimas!$A$15:$F$29,2))))),IF(H20<1999,VLOOKUP(K20,Minimas!$G$15:$L$29,6),IF(AND(H20>1998,H20<2002),VLOOKUP(K20,Minimas!$G$15:$L$29,5),IF(AND(H20>2001,H20<2004),VLOOKUP(K20,Minimas!$G$15:$L$29,4),IF(AND(H20>2003,H20<2006),VLOOKUP(K20,Minimas!$G$15:$L$29,3),VLOOKUP(K20,Minimas!$G$15:$L$29,2))))))) ->  | AB20: =T20-HLOOKUP(V20,Minimas!$C$3:$CD$12,2,FALSE) ->  | AC20: =T20-HLOOKUP(V20,Minimas!$C$3:$CD$12,3,FALSE) ->  | AD20: =T20-HLOOKUP(V20,Minimas!$C$3:$CD$12,4,FALSE) ->  | AE20: =T20-HLOOKUP(V20,Minimas!$C$3:$CD$12,5,FALSE) ->  | AF20: =T20-HLOOKUP(V20,Minimas!$C$3:$CD$12,6,FALSE) ->  | AG20: =T20-HLOOKUP(V20,Minimas!$C$3:$CD$12,7,FALSE) ->  | AH20: =T20-HLOOKUP(V20,Minimas!$C$3:$CD$12,8,FALSE) ->  | AI20: =T20-HLOOKUP(V20,Minimas!$C$3:$CD$12,9,FALSE) ->  | AJ20: =T20-HLOOKUP(V20,Minimas!$C$3:$CD$12,10,FALSE) -> 
E21: H | O21: 0 | S21: 0 | T21: 0 | V21: =IF(E21=0," ",IF(E21="H",IF(H21<1999,VLOOKUP(K21,Minimas!$A$15:$F$29,6),IF(AND(H21>1998,H21<2002),VLOOKUP(K21,Minimas!$A$15:$F$29,5),IF(AND(H21>2001,H21<2004),VLOOKUP(K21,Minimas!$A$15:$F$29,4),IF(AND(H21>2003,H21<2006),VLOOKUP(K21,Minimas!$A$15:$F$29,3),VLOOKUP(K21,Minimas!$A$15:$F$29,2))))),IF(H21<1999,VLOOKUP(K21,Minimas!$G$15:$L$29,6),IF(AND(H21>1998,H21<2002),VLOOKUP(K21,Minimas!$G$15:$L$29,5),IF(AND(H21>2001,H21<2004),VLOOKUP(K21,Minimas!$G$15:$L$29,4),IF(AND(H21>2003,H21<2006),VLOOKUP(K21,Minimas!$G$15:$L$29,3),VLOOKUP(K21,Minimas!$G$15:$L$29,2))))))) ->  | AB21: =T21-HLOOKUP(V21,Minimas!$C$3:$CD$12,2,FALSE) ->  | AC21: =T21-HLOOKUP(V21,Minimas!$C$3:$CD$12,3,FALSE) ->  | AD21: =T21-HLOOKUP(V21,Minimas!$C$3:$CD$12,4,FALSE) ->  | AE21: =T21-HLOOKUP(V21,Minimas!$C$3:$CD$12,5,FALSE) ->  | AF21: =T21-HLOOKUP(V21,Minimas!$C$3:$CD$12,6,FALSE) ->  | AG21: =T21-HLOOKUP(V21,Minimas!$C$3:$CD$12,7,FALSE) ->  | AH21: =T21-HLOOKUP(V21,Minimas!$C$3:$CD$12,8,FALSE) ->  | AI21: =T21-HLOOKUP(V21,Minimas!$C$3:$CD$12,9,FALSE) ->  | AJ21: =T21-HLOOKUP(V21,Minimas!$C$3:$CD$12,10,FALSE) -> 
AB22: DEB | AC22: DEP + | AD22: REG + | AE22: IRG + | AF22: FED + | AG22: NAT + | AH22: INTB + | AI22: INTA + | AJ22: OLY +
T23: =IF(E23="","",O23+S23) ->  | V23: =IF(E23=0," ",IF(E23="H",IF(H23<1999,VLOOKUP(K23,Minimas!$A$15:$F$29,6),IF(AND(H23>1998,H23<2002),VLOOKUP(K23,Minimas!$A$15:$F$29,5),IF(AND(H23>2001,H23<2004),VLOOKUP(K23,Minimas!$A$15:$F$29,4),IF(AND(H23>2003,H23<2006),VLOOKUP(K23,Minimas!$A$15:$F$29,3),VLOOKUP(K23,Minimas!$A$15:$F$29,2))))),IF(H23<1999,VLOOKUP(K23,Minimas!$G$15:$L$29,6),IF(AND(H23>1998,H23<2002),VLOOKUP(K23,Minimas!$G$15:$L$29,5),IF(AND(H23>2001,H23<2004),VLOOKUP(K23,Minimas!$G$15:$L$29,4),IF(AND(H23>2003,H23<2006),VLOOKUP(K23,Minimas!$G$15:$L$29,3),VLOOKUP(K23,Minimas!$G$15:$L$29,2))))))) ->  | AB23: =T23-HLOOKUP(V23,Minimas!$C$3:$CD$12,2,FALSE) ->  | AC23: =T23-HLOOKUP(V23,Minimas!$C$3:$CD$12,3,FALSE) ->  | AD23: =T23-HLOOKUP(V23,Minimas!$C$3:$CD$12,4,FALSE) ->  | AE23: =T23-HLOOKUP(V23,Minimas!$C$3:$CD$12,5,FALSE) ->  | AF23: =T23-HLOOKUP(V23,Minimas!$C$3:$CD$12,6,FALSE) ->  | AG23: =T23-HLOOKUP(V23,Minimas!$C$3:$CD$12,7,FALSE) ->  | AH23: =T23-HLOOKUP(V23,Minimas!$C$3:$CD$12,8,FALSE) ->  | AI23: =T23-HLOOKUP(V23,Minimas!$C$3:$CD$12,9,FALSE) ->  | AJ23: =T23-HLOOKUP(V23,Minimas!$C$3:$CD$12,10,FALSE) -> 
I24: =SUM(W23:W25) -> 0 | T24: =IF(E24="","",O24+S24) ->  | V24: =IF(E24=0," ",IF(E24="H",IF(H24<1999,VLOOKUP(K24,Minimas!$A$15:$F$29,6),IF(AND(H24>1998,H24<2002),VLOOKUP(K24,Minimas!$A$15:$F$29,5),IF(AND(H24>2001,H24<2004),VLOOKUP(K24,Minimas!$A$15:$F$29,4),IF(AND(H24>2003,H24<2006),VLOOKUP(K24,Minimas!$A$15:$F$29,3),VLOOKUP(K24,Minimas!$A$15:$F$29,2))))),IF(H24<1999,VLOOKUP(K24,Minimas!$G$15:$L$29,6),IF(AND(H24>1998,H24<2002),VLOOKUP(K24,Minimas!$G$15:$L$29,5),IF(AND(H24>2001,H24<2004),VLOOKUP(K24,Minimas!$G$15:$L$29,4),IF(AND(H24>2003,H24<2006),VLOOKUP(K24,Minimas!$G$15:$L$29,3),VLOOKUP(K24,Minimas!$G$15:$L$29,2))))))) ->  | AB24: =T24-HLOOKUP(V24,Minimas!$C$3:$CD$12,2,FALSE) ->  | AC24: =T24-HLOOKUP(V24,Minimas!$C$3:$CD$12,3,FALSE) ->  | AD24: =T24-HLOOKUP(V24,Minimas!$C$3:$CD$12,4,FALSE) ->  | AE24: =T24-HLOOKUP(V24,Minimas!$C$3:$CD$12,5,FALSE) ->  | AF24: =T24-HLOOKUP(V24,Minimas!$C$3:$CD$12,6,FALSE) ->  | AG24: =T24-HLOOKUP(V24,Minimas!$C$3:$CD$12,7,FALSE) ->  | AH24: =T24-HLOOKUP(V24,Minimas!$C$3:$CD$12,8,FALSE) ->  | AI24: =T24-HLOOKUP(V24,Minimas!$C$3:$CD$12,9,FALSE) ->  | AJ24: =T24-HLOOKUP(V24,Minimas!$C$3:$CD$12,10,FALSE) -> 
V25: =IF(E25=0," ",IF(E25="H",IF(H25<1999,VLOOKUP(K25,Minimas!$A$15:$F$29,6),IF(AND(H25>1998,H25<2002),VLOOKUP(K25,Minimas!$A$15:$F$29,5),IF(AND(H25>2001,H25<2004),VLOOKUP(K25,Minimas!$A$15:$F$29,4),IF(AND(H25>2003,H25<2006),VLOOKUP(K25,Minimas!$A$15:$F$29,3),VLOOKUP(K25,Minimas!$A$15:$F$29,2))))),IF(H25<1999,VLOOKUP(K25,Minimas!$G$15:$L$29,6),IF(AND(H25>1998,H25<2002),VLOOKUP(K25,Minimas!$G$15:$L$29,5),IF(AND(H25>2001,H25<2004),VLOOKUP(K25,Minimas!$G$15:$L$29,4),IF(AND(H25>2003,H25<2006),VLOOKUP(K25,Minimas!$G$15:$L$29,3),VLOOKUP(K25,Minimas!$G$15:$L$29,2))))))) ->  | AB25: =T25-HLOOKUP(V25,Minimas!$C$3:$CD$12,2,FALSE) ->  | AC25: =T25-HLOOKUP(V25,Minimas!$C$3:$CD$12,3,FALSE) ->  | AD25: =T25-HLOOKUP(V25,Minimas!$C$3:$CD$12,4,FALSE) ->  | AE25: =T25-HLOOKUP(V25,Minimas!$C$3:$CD$12,5,FALSE) ->  | AF25: =T25-HLOOKUP(V25,Minimas!$C$3:$CD$12,6,FALSE) ->  | AG25: =T25-HLOOKUP(V25,Minimas!$C$3:$CD$12,7,FALSE) ->  | AH25: =T25-HLOOKUP(V25,Minimas!$C$3:$CD$12,8,FALSE) ->  | AI25: =T25-HLOOKUP(V25,Minimas!$C$3:$CD$12,9,FALSE) ->  | AJ25: =T25-HLOOKUP(V25,Minimas!$C$3:$CD$12,10,FALSE) -> 
AB26: DEB | AC26: DEP + | AD26: REG + | AE26: IRG + | AF26: FED + | AG26: NAT + | AH26: INTB + | AI26: INTA + | AJ26: OLY +
T27: =IF(E27="","",O27+S27) ->  | V27: =IF(E27=0," ",IF(E27="H",IF(H27<1999,VLOOKUP(K27,Minimas!$A$15:$F$29,6),IF(AND(H27>1998,H27<2002),VLOOKUP(K27,Minimas!$A$15:$F$29,5),IF(AND(H27>2001,H27<2004),VLOOKUP(K27,Minimas!$A$15:$F$29,4),IF(AND(H27>2003,H27<2006),VLOOKUP(K27,Minimas!$A$15:$F$29,3),VLOOKUP(K27,Minimas!$A$15:$F$29,2))))),IF(H27<1999,VLOOKUP(K27,Minimas!$G$15:$L$29,6),IF(AND(H27>1998,H27<2002),VLOOKUP(K27,Minimas!$G$15:$L$29,5),IF(AND(H27>2001,H27<2004),VLOOKUP(K27,Minimas!$G$15:$L$29,4),IF(AND(H27>2003,H27<2006),VLOOKUP(K27,Minimas!$G$15:$L$29,3),VLOOKUP(K27,Minimas!$G$15:$L$29,2))))))) ->  | AB27: =T27-HLOOKUP(V27,Minimas!$C$3:$CD$12,2,FALSE) ->  | AC27: =T27-HLOOKUP(V27,Minimas!$C$3:$CD$12,3,FALSE) ->  | AD27: =T27-HLOOKUP(V27,Minimas!$C$3:$CD$12,4,FALSE) ->  | AE27: =T27-HLOOKUP(V27,Minimas!$C$3:$CD$12,5,FALSE) ->  | AF27: =T27-HLOOKUP(V27,Minimas!$C$3:$CD$12,6,FALSE) ->  | AG27: =T27-HLOOKUP(V27,Minimas!$C$3:$CD$12,7,FALSE) ->  | AH27: =T27-HLOOKUP(V27,Minimas!$C$3:$CD$12,8,FALSE) ->  | AI27: =T27-HLOOKUP(V27,Minimas!$C$3:$CD$12,9,FALSE) ->  | AJ27: =T27-HLOOKUP(V27,Minimas!$C$3:$CD$12,10,FALSE) -> 
I28: =SUM(W27:W29) -> 0 | T28: =IF(E28="","",O28+S28) ->  | V28: =IF(E28=0," ",IF(E28="H",IF(H28<1999,VLOOKUP(K28,Minimas!$A$15:$F$29,6),IF(AND(H28>1998,H28<2002),VLOOKUP(K28,Minimas!$A$15:$F$29,5),IF(AND(H28>2001,H28<2004),VLOOKUP(K28,Minimas!$A$15:$F$29,4),IF(AND(H28>2003,H28<2006),VLOOKUP(K28,Minimas!$A$15:$F$29,3),VLOOKUP(K28,Minimas!$A$15:$F$29,2))))),IF(H28<1999,VLOOKUP(K28,Minimas!$G$15:$L$29,6),IF(AND(H28>1998,H28<2002),VLOOKUP(K28,Minimas!$G$15:$L$29,5),IF(AND(H28>2001,H28<2004),VLOOKUP(K28,Minimas!$G$15:$L$29,4),IF(AND(H28>2003,H28<2006),VLOOKUP(K28,Minimas!$G$15:$L$29,3),VLOOKUP(K28,Minimas!$G$15:$L$29,2))))))) ->  | AB28: =T28-HLOOKUP(V28,Minimas!$C$3:$CD$12,2,FALSE) ->  | AC28: =T28-HLOOKUP(V28,Minimas!$C$3:$CD$12,3,FALSE) ->  | AD28: =T28-HLOOKUP(V28,Minimas!$C$3:$CD$12,4,FALSE) ->  | AE28: =T28-HLOOKUP(V28,Minimas!$C$3:$CD$12,5,FALSE) ->  | AF28: =T28-HLOOKUP(V28,Minimas!$C$3:$CD$12,6,FALSE) ->  | AG28: =T28-HLOOKUP(V28,Minimas!$C$3:$CD$12,7,FALSE) ->  | AH28: =T28-HLOOKUP(V28,Minimas!$C$3:$CD$12,8,FALSE) ->  | AI28: =T28-HLOOKUP(V28,Minimas!$C$3:$CD$12,9,FALSE) ->  | AJ28: =T28-HLOOKUP(V28,Minimas!$C$3:$CD$12,10,FALSE) -> 
V29: =IF(E29=0," ",IF(E29="H",IF(H29<1999,VLOOKUP(K29,Minimas!$A$15:$F$29,6),IF(AND(H29>1998,H29<2002),VLOOKUP(K29,Minimas!$A$15:$F$29,5),IF(AND(H29>2001,H29<2004),VLOOKUP(K29,Minimas!$A$15:$F$29,4),IF(AND(H29>2003,H29<2006),VLOOKUP(K29,Minimas!$A$15:$F$29,3),VLOOKUP(K29,Minimas!$A$15:$F$29,2))))),IF(H29<1999,VLOOKUP(K29,Minimas!$G$15:$L$29,6),IF(AND(H29>1998,H29<2002),VLOOKUP(K29,Minimas!$G$15:$L$29,5),IF(AND(H29>2001,H29<2004),VLOOKUP(K29,Minimas!$G$15:$L$29,4),IF(AND(H29>2003,H29<2006),VLOOKUP(K29,Minimas!$G$15:$L$29,3),VLOOKUP(K29,Minimas!$G$15:$L$29,2))))))) ->  | AB29: =T29-HLOOKUP(V29,Minimas!$C$3:$CD$12,2,FALSE) ->  | AC29: =T29-HLOOKUP(V29,Minimas!$C$3:$CD$12,3,FALSE) ->  | AD29: =T29-HLOOKUP(V29,Minimas!$C$3:$CD$12,4,FALSE) ->  | AE29: =T29-HLOOKUP(V29,Minimas!$C$3:$CD$12,5,FALSE) ->  | AF29: =T29-HLOOKUP(V29,Minimas!$C$3:$CD$12,6,FALSE) ->  | AG29: =T29-HLOOKUP(V29,Minimas!$C$3:$CD$12,7,FALSE) ->  | AH29: =T29-HLOOKUP(V29,Minimas!$C$3:$CD$12,8,FALSE) ->  | AI29: =T29-HLOOKUP(V29,Minimas!$C$3:$CD$12,9,FALSE) ->  | AJ29: =T29-HLOOKUP(V29,Minimas!$C$3:$CD$12,10,FALSE) -> 
B31: Réserves / Observations / Records : | O31: N° licence | P31: Arbitre 1 | Q31: DEVROE P | U31: Signature
O32: N° licence | P32: Arbitre 2 | Q32: DUPEYROUX E | U32: Signature
O33: N° licence | P33: Arbitre 3 | Q33: LLORENS J | U33: Signature
O34: N° licence | P34: Chrono | Q34: CUDIA C | U34: Signature
O35: N° licence | P35: Ctrl Tech | Q35: NOM / Prénom | U35: Signature
O36: N° licence | P36: Marshal | Q36: ALBENGA N GOUDE Z | U36: Signature
O37: N° licence | P37: Secrétaire | Q37: NOM / Prénom | U37: Signature
O38: N° licence | P38: Micro | Q38: NOM / Prénom | U38: Signature

Sheet cadette juniors filles
D2: COUPE DE FRANCE U15 - U17 - U20 - H&F | K2: 1er Tour | N2: LIEU | V2: DATE
D3: ELIMINATOIRES DE LIGUE GPF / FRANCE | N3: BORDEAUX | V3: 2019-01-15
B5: REG | C5: Licence | D5: Pl | E5: Genre | F5: NOM - Prénom | H5: AN | I5: CLUB | J5: NAT | K5: P.C. | L5: 1 | M5: 2 | N5: 3 | O5: ARR | P5: 1 | Q5: 2 | R5: 3 | S5: EP-J | T5: TOTAL | U5: Serie | V5: Catégorie | W5: IWF | AB5: DEB | AC5: DPT + | AD5: REG + | AE5: IRG + | AF5: FED + | AG5: NAT + | AH5: INTB + | AI5: INTA + | AJ5: OLY +
AB6: DEB | AC6: DEP + | AD6: REG + | AE6: IRG + | AF6: FED + | AG6: NAT + | AH6: INTB + | AI6: INTA + | AJ6: OLY +
B7: SUD PACA | C7: 402800 | E7: F | F7: FALCOU | G7: Cassandra | H7: 2000 | I7: ASLDDTOULON1 | J7: F | K7: 46.8 | L7: 50 | M7: 53 | N7: 55 | O7: =IF(E7="","",IF(MAXA(L7:N7)<=0,0,MAXA(L7:N7))) -> 55 | P7: 65 | Q7: 68 | R7: 70 | S7: =IF(E7="","",IF(MAXA(P7:R7)<=0,0,MAXA(P7:R7))) -> 70 | T7: =IF(E7="","",O7+S7) -> 125 | U7: =+CONCATENATE(AM7," ",AN7) -> INTB + 5 | V7: =IF(E7=0," ",IF(E7="H",IF(H7<1999,VLOOKUP(K7,Minimas!$A$15:$F$29,6),IF(AND(H7>1998,H7<2002),VLOOKUP(K7,Minimas!$A$15:$F$29,5),IF(AND(H7>2001,H7<2004),VLOOKUP(K7,Minimas!$A$15:$F$29,4),IF(AND(H7>2003,H7<2006),VLOOKUP(K7,Minimas!$A$15:$F$29,3),VLOOKUP(K7,Minimas!$A$15:$F$29,2))))),IF(H7<1999,VLOOKUP(K7,Minimas!$G$15:$L$29,6),IF(AND(H7>1998,H7<2002),VLOOKUP(K7,Minimas!$G$15:$L$29,5),IF(AND(H7>2001,H7<2004),VLOOKUP(K7,Minimas!$G$15:$L$29,4),IF(AND(H7>2003,H7<2006),VLOOKUP(K7,Minimas!$G$15:$L$29,3),VLOOKUP(K7,Minimas!$G$15:$L$29,2))))))) -> U20 F49 | W7: =IF(E7=" "," ",IF(E7="H",10^(0.75194503*LOG(K7/175.508)^2)*T7,IF(E7="F",10^(0.783497476* LOG(K7/153.655)^2)*T7,""))) -> 202.1921271 | AB7: =T7-HLOOKUP(V7,Minimas!$C$3:$CD$12,2,FALSE) -> 80 | AC7: =T7-HLOOKUP(V7,Minimas!$C$3:$CD$12,3,FALSE) -> 70 | AD7: =T7-HLOOKUP(V7,Minimas!$C$3:$CD$12,4,FALSE) -> 60 | AE7: =T7-HLOOKUP(V7,Minimas!$C$3:$CD$12,5,FALSE) -> 48 | AF7: =T7-HLOOKUP(V7,Minimas!$C$3:$CD$12,6,FALSE) -> 35 | AG7: =T7-HLOOKUP(V7,Minimas!$C$3:$CD$12,7,FALSE) -> 20 | AH7: =T7-HLOOKUP(V7,Minimas!$C$3:$CD$12,8,FALSE) -> 5 | AI7: =T7-HLOOKUP(V7,Minimas!$C$3:$CD$12,9,FALSE) -> -15 | AJ7: =T7-HLOOKUP(V7,Minimas!$C$3:$CD$12,10,FALSE) -> -50 | AK7: =IF(E7=0," ",IF(AJ7>=0,$AJ$5,IF(AI7>=0,$AI$5,IF(AH7>=0,$AH$5,IF(AG7>=0,$AG$5,IF(AF7>=0,$AF$5,IF(AE7>=0,$AE$5,IF(AD7>=0,$AD$5,IF(AC7>=0,$AC$5,$AB$5))))))))) -> INTB + | AM7: =IF(AK7="","",AK7) -> INTB + | AN7: =IF(E7=0," ",IF(AJ7>=0,AJ7,IF(AI7>=0,AI7,IF(AH7>=0,AH7,IF(AG7>=0,AG7,IF(AF7>=0,AF7,IF(AE7>=0,AE7,IF(AD7>=0,AD7,IF(AC7>=0,AC7,AB7))))))))) -> 5
C8: 403855 | E8: F | F8: MAZOUZ | G8: Elodie | H8: 2000 | I8: =SUM(W7:W9) -> 558.9432102 | J8: F | K8: 54.9 | L8: 54 | M8: -57 | N8: 57 | O8: =IF(E8="","",IF(MAXA(L8:N8)<=0,0,MAXA(L8:N8))) -> 57 | P8: 68 | Q8: 71 | R8: 74 | S8: =IF(E8="","",IF(MAXA(P8:R8)<=0,0,MAXA(P8:R8))) -> 74 | T8: =IF(E8="","",O8+S8) -> 131 | U8: NAT + 13 | V8: =IF(E8=0," ",IF(E8="H",IF(H8<1999,VLOOKUP(K8,Minimas!$A$15:$F$29,6),IF(AND(H8>1998,H8<2002),VLOOKUP(K8,Minimas!$A$15:$F$29,5),IF(AND(H8>2001,H8<2004),VLOOKUP(K8,Minimas!$A$15:$F$29,4),IF(AND(H8>2003,H8<2006),VLOOKUP(K8,Minimas!$A$15:$F$29,3),VLOOKUP(K8,Minimas!$A$15:$F$29,2))))),IF(H8<1999,VLOOKUP(K8,Minimas!$G$15:$L$29,6),IF(AND(H8>1998,H8<2002),VLOOKUP(K8,Minimas!$G$15:$L$29,5),IF(AND(H8>2001,H8<2004),VLOOKUP(K8,Minimas!$G$15:$L$29,4),IF(AND(H8>2003,H8<2006),VLOOKUP(K8,Minimas!$G$15:$L$29,3),VLOOKUP(K8,Minimas!$G$15:$L$29,2))))))) -> U20 F55 | W8: =IF(E8=" "," ",IF(E8="H",10^(0.75194503*LOG(K8/175.508)^2)*T8,IF(E8="F",10^(0.783497476* LOG(K8/153.655)^2)*T8,""))) -> 187.8465307 | AB8: =T8-HLOOKUP(V8,Minimas!$C$3:$CD$12,2,FALSE) -> 81 | AC8: =T8-HLOOKUP(V8,Minimas!$C$3:$CD$12,3,FALSE) -> 69 | AD8: =T8-HLOOKUP(V8,Minimas!$C$3:$CD$12,4,FALSE) -> 56 | AE8: =T8-HLOOKUP(V8,Minimas!$C$3:$CD$12,5,FALSE) -> 44 | AF8: =T8-HLOOKUP(V8,Minimas!$C$3:$CD$12,6,FALSE) -> 28 | AG8: =T8-HLOOKUP(V8,Minimas!$C$3:$CD$12,7,FALSE) -> 13 | AH8: =T8-HLOOKUP(V8,Minimas!$C$3:$CD$12,8,FALSE) -> -7 | AI8: =T8-HLOOKUP(V8,Minimas!$C$3:$CD$12,9,FALSE) -> -29 | AJ8: =T8-HLOOKUP(V8,Minimas!$C$3:$CD$12,10,FALSE) -> -59 | AK8: =IF(E8=0," ",IF(AJ8>=0,$AJ$5,IF(AI8>=0,$AI$5,IF(AH8>=0,$AH$5,IF(AG8>=0,$AG$5,IF(AF8>=0,$AF$5,IF(AE8>=0,$AE$5,IF(AD8>=0,$AD$5,IF(AC8>=0,$AC$5,$AB$5))))))))) -> NAT + | AM8: =IF(AK8="","",AK8) -> NAT + | AN8: =IF(E8=0," ",IF(AJ8>=0,AJ8,IF(AI8>=0,AI8,IF(AH8>=0,AH8,IF(AG8>=0,AG8,IF(AF8>=0,AF8,IF(AE8>=0,AE8,IF(AD8>=0,AD8,IF(AC8>=0,AC8,AB8))))))))) -> 13
C9: 397293 | E9: F | F9: MAILLOT | G9: Bahia | H9: 2001 | J9: F | K9: 62.3 | L9: 57 | M9: 60 | N9: -62 | O9: 60 | P9: 65 | Q9: 68 | R9: -70 | S9: 68 | T9: 128 | U9: FED + 10 | V9: =IF(E9=0," ",IF(E9="H",IF(H9<1999,VLOOKUP(K9,Minimas!$A$15:$F$29,6),IF(AND(H9>1998,H9<2002),VLOOKUP(K9,Minimas!$A$15:$F$29,5),IF(AND(H9>2001,H9<2004),VLOOKUP(K9,Minimas!$A$15:$F$29,4),IF(AND(H9>2003,H9<2006),VLOOKUP(K9,Minimas!$A$15:$F$29,3),VLOOKUP(K9,Minimas!$A$15:$F$29,2))))),IF(H9<1999,VLOOKUP(K9,Minimas!$G$15:$L$29,6),IF(AND(H9>1998,H9<2002),VLOOKUP(K9,Minimas!$G$15:$L$29,5),IF(AND(H9>2001,H9<2004),VLOOKUP(K9,Minimas!$G$15:$L$29,4),IF(AND(H9>2003,H9<2006),VLOOKUP(K9,Minimas!$G$15:$L$29,3),VLOOKUP(K9,Minimas!$G$15:$L$29,2))))))) -> U20 F64 | W9: 168.9045524 | AB9: =T9-HLOOKUP(V9,Minimas!$C$3:$CD$12,2,FALSE) -> 68 | AC9: =T9-HLOOKUP(V9,Minimas!$C$3:$CD$12,3,FALSE) -> 53 | AD9: =T9-HLOOKUP(V9,Minimas!$C$3:$CD$12,4,FALSE) -> 38 | AE9: =T9-HLOOKUP(V9,Minimas!$C$3:$CD$12,5,FALSE) -> 23 | AF9: =T9-HLOOKUP(V9,Minimas!$C$3:$CD$12,6,FALSE) -> 10 | AG9: =T9-HLOOKUP(V9,Minimas!$C$3:$CD$12,7,FALSE) -> -7 | AH9: =T9-HLOOKUP(V9,Minimas!$C$3:$CD$12,8,FALSE) -> -27 | AI9: =T9-HLOOKUP(V9,Minimas!$C$3:$CD$12,9,FALSE) -> -47 | AJ9: =T9-HLOOKUP(V9,Minimas!$C$3:$CD$12,10,FALSE) -> -82 | AK9: FED + | AM9: FED + | AN9: 10
AB10: DEB | AC10: DEP + | AD10: REG + | AE10: IRG + | AF10: FED + | AG10: NAT + | AH10: INTB + | AI10: INTA + | AJ10: OLY +
B11: SUD PACA | C11: 385815 | E11: F | F11: GOUDE | G11: Zoe | H11: 1999 | I11: ASLDD TOULON2 | J11: F | K11: 62.3 | L11: 43 | M11: 46 | N11: -49 | O11: =IF(E11="","",IF(MAXA(L11:N11)<=0,0,MAXA(L11:N11))) -> 46 | P11: 53 | Q11: 56 | R11: -58 | S11: 56 | T11: =IF(E11="","",O11+S11) -> 102 | U11: REG + 12 | V11: =IF(E11=0," ",IF(E11="H",IF(H11<1999,VLOOKUP(K11,Minimas!$A$15:$F$29,6),IF(AND(H11>1998,H11<2002),VLOOKUP(K11,Minimas!$A$15:$F$29,5),IF(AND(H11>2001,H11<2004),VLOOKUP(K11,Minimas!$A$15:$F$29,4),IF(AND(H11>2003,H11<2006),VLOOKUP(K11,Minimas!$A$15:$F$29,3),VLOOKUP(K11,Minimas!$A$15:$F$29,2))))),IF(H11<1999,VLOOKUP(K11,Minimas!$G$15:$L$29,6),IF(AND(H11>1998,H11<2002),VLOOKUP(K11,Minimas!$G$15:$L$29,5),IF(AND(H11>2001,H11<2004),VLOOKUP(K11,Minimas!$G$15:$L$29,4),IF(AND(H11>2003,H11<2006),VLOOKUP(K11,Minimas!$G$15:$L$29,3),VLOOKUP(K11,Minimas!$G$15:$L$29,2))))))) -> U20 F64 | W11: =IF(E11=" "," ",IF(E11="H",10^(0.75194503*LOG(K11/175.508)^2)*T11,IF(E11="F",10^(0.783497476* LOG(K11/153.655)^2)*T11,""))) -> 134.5958152 | AB11: =T11-HLOOKUP(V11,Minimas!$C$3:$CD$12,2,FALSE) -> 42 | AC11: =T11-HLOOKUP(V11,Minimas!$C$3:$CD$12,3,FALSE) -> 27 | AD11: =T11-HLOOKUP(V11,Minimas!$C$3:$CD$12,4,FALSE) -> 12 | AE11: =T11-HLOOKUP(V11,Minimas!$C$3:$CD$12,5,FALSE) -> -3 | AF11: =T11-HLOOKUP(V11,Minimas!$C$3:$CD$12,6,FALSE) -> -16 | AG11: =T11-HLOOKUP(V11,Minimas!$C$3:$CD$12,7,FALSE) -> -33 | AH11: =T11-HLOOKUP(V11,Minimas!$C$3:$CD$12,8,FALSE) -> -53 | AI11: =T11-HLOOKUP(V11,Minimas!$C$3:$CD$12,9,FALSE) -> -73 | AJ11: =T11-HLOOKUP(V11,Minimas!$C$3:$CD$12,10,FALSE) -> -108 | AK11: REG + | AM11: =IF(AK11="","",AK11) -> REG + | AN11: =IF(E11=0," ",IF(AJ11>=0,AJ11,IF(AI11>=0,AI11,IF(AH11>=0,AH11,IF(AG11>=0,AG11,IF(AF11>=0,AF11,IF(AE11>=0,AE11,IF(AD11>=0,AD11,IF(AC11>=0,AC11,AB11))))))))) -> 12
C12: 417751 | E12: F | F12: ESTEVES | G12: Laura | H12: 2001 | I12: =SUM(W11:W13) -> 397.1563511 | J12: F | K12: 52.6 | L12: -39 | M12: 39 | N12: -42 | O12: =IF(E12="","",IF(MAXA(L12:N12)<=0,0,MAXA(L12:N12))) -> 39 | P12: 50 | Q12: 53 | R12: -55 | S12: 53 | T12: =IF(E12="","",O12+S12) -> 92 | U12: IRG + 5 | V12: =IF(E12=0," ",IF(E12="H",IF(H12<1999,VLOOKUP(K12,Minimas!$A$15:$F$29,6),IF(AND(H12>1998,H12<2002),VLOOKUP(K12,Minimas!$A$15:$F$29,5),IF(AND(H12>2001,H12<2004),VLOOKUP(K12,Minimas!$A$15:$F$29,4),IF(AND(H12>2003,H12<2006),VLOOKUP(K12,Minimas!$A$15:$F$29,3),VLOOKUP(K12,Minimas!$A$15:$F$29,2))))),IF(H12<1999,VLOOKUP(K12,Minimas!$G$15:$L$29,6),IF(AND(H12>1998,H12<2002),VLOOKUP(K12,Minimas!$G$15:$L$29,5),IF(AND(H12>2001,H12<2004),VLOOKUP(K12,Minimas!$G$15:$L$29,4),IF(AND(H12>2003,H12<2006),VLOOKUP(K12,Minimas!$G$15:$L$29,3),VLOOKUP(K12,Minimas!$G$15:$L$29,2))))))) -> U20 F55 | W12: =IF(E12=" "," ",IF(E12="H",10^(0.75194503*LOG(K12/175.508)^2)*T12,IF(E12="F",10^(0.783497476* LOG(K12/153.655)^2)*T12,""))) -> 136.0218118 | AB12: =T12-HLOOKUP(V12,Minimas!$C$3:$CD$12,2,FALSE) -> 42 | AC12: =T12-HLOOKUP(V12,Minimas!$C$3:$CD$12,3,FALSE) -> 30 | AD12: =T12-HLOOKUP(V12,Minimas!$C$3:$CD$12,4,FALSE) -> 17 | AE12: =T12-HLOOKUP(V12,Minimas!$C$3:$CD$12,5,FALSE) -> 5 | AF12: =T12-HLOOKUP(V12,Minimas!$C$3:$CD$12,6,FALSE) -> -11 | AG12: =T12-HLOOKUP(V12,Minimas!$C$3:$CD$12,7,FALSE) -> -26 | AH12: =T12-HLOOKUP(V12,Minimas!$C$3:$CD$12,8,FALSE) -> -46 | AI12: =T12-HLOOKUP(V12,Minimas!$C$3:$CD$12,9,FALSE) -> -68 | AJ12: =T12-HLOOKUP(V12,Minimas!$C$3:$CD$12,10,FALSE) -> -98 | AK12: IRG + | AM12: IRG + | AN12: 5
C13: 434688 | E13: F | F13: HELOISE | G13: Laureen | J13: F | K13: 45.9 | L13: 26 | M13: 29 | N13: 32 | O13: 32 | P13: 38 | Q13: 41 | R13: 45 | S13: =IF(E13="","",IF(MAXA(P13:R13)<=0,0,MAXA(P13:R13))) -> 45 | T13: 77 | U13: =+CONCATENATE(AM13," ",AN13) -> DPT + 10 | V13: =IF(E13=0," ",IF(E13="H",IF(H13<1999,VLOOKUP(K13,Minimas!$A$15:$F$29,6),IF(AND(H13>1998,H13<2002),VLOOKUP(K13,Minimas!$A$15:$F$29,5),IF(AND(H13>2001,H13<2004),VLOOKUP(K13,Minimas!$A$15:$F$29,4),IF(AND(H13>2003,H13<2006),VLOOKUP(K13,Minimas!$A$15:$F$29,3),VLOOKUP(K13,Minimas!$A$15:$F$29,2))))),IF(H13<1999,VLOOKUP(K13,Minimas!$G$15:$L$29,6),IF(AND(H13>1998,H13<2002),VLOOKUP(K13,Minimas!$G$15:$L$29,5),IF(AND(H13>2001,H13<2004),VLOOKUP(K13,Minimas!$G$15:$L$29,4),IF(AND(H13>2003,H13<2006),VLOOKUP(K13,Minimas!$G$15:$L$29,3),VLOOKUP(K13,Minimas!$G$15:$L$29,2))))))) -> SE F49 | W13: =IF(E13=" "," ",IF(E13="H",10^(0.75194503*LOG(K13/175.508)^2)*T13,IF(E13="F",10^(0.783497476* LOG(K13/153.655)^2)*T13,""))) -> 126.5387241 | AB13: =T13-HLOOKUP(V13,Minimas!$C$3:$CD$12,2,FALSE) -> 22 | AC13: =T13-HLOOKUP(V13,Minimas!$C$3:$CD$12,3,FALSE) -> 10 | AD13: =T13-HLOOKUP(V13,Minimas!$C$3:$CD$12,4,FALSE) -> -3 | AE13: =T13-HLOOKUP(V13,Minimas!$C$3:$CD$12,5,FALSE) -> -15 | AF13: =T13-HLOOKUP(V13,Minimas!$C$3:$CD$12,6,FALSE) -> -30 | AG13: =T13-HLOOKUP(V13,Minimas!$C$3:$CD$12,7,FALSE) -> -45 | AH13: =T13-HLOOKUP(V13,Minimas!$C$3:$CD$12,8,FALSE) -> -63 | AI13: =T13-HLOOKUP(V13,Minimas!$C$3:$CD$12,9,FALSE) -> -83 | AJ13: =T13-HLOOKUP(V13,Minimas!$C$3:$CD$12,10,FALSE) -> -98 | AK13: DPT + | AM13: DPT + | AN13: 10
AB14: DEB | AC14: DEP + | AD14: REG + | AE14: IRG + | AF14: FED + | AG14: NAT + | AH14: INTB + | AI14: INTA + | AJ14: OLY +
B15: SUDPACA | C15: 429786 | E15: F | F15: ABRIL | G15: Manon | H15: 2001 | I15: ASPTT DRAGUIGNAN | J15: F | K15: 58.9 | L15: -43 | M15: 43 | N15: 47 | O15: =IF(E15="","",IF(MAXA(L15:N15)<=0,0,MAXA(L15:N15))) -> 47 | P15: 56 | Q15: -61 | R15: 63 | S15: 63 | T15: =IF(E15="","",O15+S15) -> 110 | U15: FED + 0 | V15: =IF(E15=0," ",IF(E15="H",IF(H15<1999,VLOOKUP(K15,Minimas!$A$15:$F$29,6),IF(AND(H15>1998,H15<2002),VLOOKUP(K15,Minimas!$A$15:$F$29,5),IF(AND(H15>2001,H15<2004),VLOOKUP(K15,Minimas!$A$15:$F$29,4),IF(AND(H15>2003,H15<2006),VLOOKUP(K15,Minimas!$A$15:$F$29,3),VLOOKUP(K15,Minimas!$A$15:$F$29,2))))),IF(H15<1999,VLOOKUP(K15,Minimas!$G$15:$L$29,6),IF(AND(H15>1998,H15<2002),VLOOKUP(K15,Minimas!$G$15:$L$29,5),IF(AND(H15>2001,H15<2004),VLOOKUP(K15,Minimas!$G$15:$L$29,4),IF(AND(H15>2003,H15<2006),VLOOKUP(K15,Minimas!$G$15:$L$29,3),VLOOKUP(K15,Minimas!$G$15:$L$29,2))))))) -> U20 F59 | W15: 150.4052474 | AB15: =T15-HLOOKUP(V15,Minimas!$C$3:$CD$12,2,FALSE) -> 55 | AC15: =T15-HLOOKUP(V15,Minimas!$C$3:$CD$12,3,FALSE) -> 40 | AD15: =T15-HLOOKUP(V15,Minimas!$C$3:$CD$12,4,FALSE) -> 28 | AE15: =T15-HLOOKUP(V15,Minimas!$C$3:$CD$12,5,FALSE) -> 15 | AF15: =T15-HLOOKUP(V15,Minimas!$C$3:$CD$12,6,FALSE) -> 0 | AG15: =T15-HLOOKUP(V15,Minimas!$C$3:$CD$12,7,FALSE) -> -15 | AH15: =T15-HLOOKUP(V15,Minimas!$C$3:$CD$12,8,FALSE) -> -35 | AI15: =T15-HLOOKUP(V15,Minimas!$C$3:$CD$12,9,FALSE) -> -55 | AJ15: =T15-HLOOKUP(V15,Minimas!$C$3:$CD$12,10,FALSE) -> -90 | AK15: FED + | AM15: FED + | AN15: 0
C16: 360579 | E16: F | F16: GEFFROY | G16: Lisa | H16: 2003 | I16: =SUM(W15:W17) -> 447.2518264 | J16: F | K16: 60.8 | L16: -58 | M16: 58 | N16: 61 | O16: =IF(E16="","",IF(MAXA(L16:N16)<=0,0,MAXA(L16:N16))) -> 61 | P16: 68 | Q16: 71 | R16: -73 | S16: 71 | T16: =IF(E16="","",O16+S16) -> 132 | U16: INTB + 2 | V16: =IF(E16=0," ",IF(E16="H",IF(H16<1999,VLOOKUP(K16,Minimas!$A$15:$F$29,6),IF(AND(H16>1998,H16<2002),VLOOKUP(K16,Minimas!$A$15:$F$29,5),IF(AND(H16>2001,H16<2004),VLOOKUP(K16,Minimas!$A$15:$F$29,4),IF(AND(H16>2003,H16<2006),VLOOKUP(K16,Minimas!$A$15:$F$29,3),VLOOKUP(K16,Minimas!$A$15:$F$29,2))))),IF(H16<1999,VLOOKUP(K16,Minimas!$G$15:$L$29,6),IF(AND(H16>1998,H16<2002),VLOOKUP(K16,Minimas!$G$15:$L$29,5),IF(AND(H16>2001,H16<2004),VLOOKUP(K16,Minimas!$G$15:$L$29,4),IF(AND(H16>2003,H16<2006),VLOOKUP(K16,Minimas!$G$15:$L$29,3),VLOOKUP(K16,Minimas!$G$15:$L$29,2))))))) -> U17 F64 | W16: 176.8461876 | AB16: =T16-HLOOKUP(V16,Minimas!$C$3:$CD$12,2,FALSE) -> 77 | AC16: =T16-HLOOKUP(V16,Minimas!$C$3:$CD$12,3,FALSE) -> 67 | AD16: =T16-HLOOKUP(V16,Minimas!$C$3:$CD$12,4,FALSE) -> 57 | AE16: =T16-HLOOKUP(V16,Minimas!$C$3:$CD$12,5,FALSE) -> 45 | AF16: =T16-HLOOKUP(V16,Minimas!$C$3:$CD$12,6,FALSE) -> 30 | AG16: =T16-HLOOKUP(V16,Minimas!$C$3:$CD$12,7,FALSE) -> 17 | AH16: =T16-HLOOKUP(V16,Minimas!$C$3:$CD$12,8,FALSE) -> 2 | AI16: =T16-HLOOKUP(V16,Minimas!$C$3:$CD$12,9,FALSE) -> -13 | AJ16: =T16-HLOOKUP(V16,Minimas!$C$3:$CD$12,10,FALSE) -> -78 | AK16: INTB + | AM16: INTB + | AN16: 2
C17: 443414 | E17: F | F17: MORISON | G17: Emie | H17: 2001 | J17: F | K17: 63.5 | L17: -42 | M17: 42 | N17: -46 | O17: 42 | P17: 50 | Q17: -53 | R17: -53 | S17: 50 | T17: 92 | U17: REG + 2 | V17: =IF(E17=0," ",IF(E17="H",IF(H17<1999,VLOOKUP(K17,Minimas!$A$15:$F$29,6),IF(AND(H17>1998,H17<2002),VLOOKUP(K17,Minimas!$A$15:$F$29,5),IF(AND(H17>2001,H17<2004),VLOOKUP(K17,Minimas!$A$15:$F$29,4),IF(AND(H17>2003,H17<2006),VLOOKUP(K17,Minimas!$A$15:$F$29,3),VLOOKUP(K17,Minimas!$A$15:$F$29,2))))),IF(H17<1999,VLOOKUP(K17,Minimas!$G$15:$L$29,6),IF(AND(H17>1998,H17<2002),VLOOKUP(K17,Minimas!$G$15:$L$29,5),IF(AND(H17>2001,H17<2004),VLOOKUP(K17,Minimas!$G$15:$L$29,4),IF(AND(H17>2003,H17<2006),VLOOKUP(K17,Minimas!$G$15:$L$29,3),VLOOKUP(K17,Minimas!$G$15:$L$29,2))))))) -> U20 F64 | W17: 120.0003914 | AB17: =T17-HLOOKUP(V17,Minimas!$C$3:$CD$12,2,FALSE) -> 32 | AC17: =T17-HLOOKUP(V17,Minimas!$C$3:$CD$12,3,FALSE) -> 17 | AD17: =T17-HLOOKUP(V17,Minimas!$C$3:$CD$12,4,FALSE) -> 2 | AE17: =T17-HLOOKUP(V17,Minimas!$C$3:$CD$12,5,FALSE) -> -13 | AF17: =T17-HLOOKUP(V17,Minimas!$C$3:$CD$12,6,FALSE) -> -26 | AG17: =T17-HLOOKUP(V17,Minimas!$C$3:$CD$12,7,FALSE) -> -43 | AH17: =T17-HLOOKUP(V17,Minimas!$C$3:$CD$12,8,FALSE) -> -63 | AI17: =T17-HLOOKUP(V17,Minimas!$C$3:$CD$12,9,FALSE) -> -83 | AJ17: =T17-HLOOKUP(V17,Minimas!$C$3:$CD$12,10,FALSE) -> -118 | AK17: REG + | AM17: REG + | AN17: 2
AB18: DEB | AC18: DEP + | AD18: REG + | AE18: IRG + | AF18: FED + | AG18: NAT + | AH18: INTB + | AI18: INTA + | AJ18: OLY +
C19: UNSS | E19: F | F19: RAFFA | G19: Morgana | H19: 2003 | J19: F | K19: 59.1 | L19: 20 | M19: -23 | N19: -23 | O19: 20 | P19: 25 | Q19: 28 | R19: 30 | S19: 30 | T19: =IF(E19="","",O19+S19) -> 50 | U19: DEB -5 | V19: =IF(E19=0," ",IF(E19="H",IF(H19<1999,VLOOKUP(K19,Minimas!$A$15:$F$29,6),IF(AND(H19>1998,H19<2002),VLOOKUP(K19,Minimas!$A$15:$F$29,5),IF(AND(H19>2001,H19<2004),VLOOKUP(K19,Minimas!$A$15:$F$29,4),IF(AND(H19>2003,H19<2006),VLOOKUP(K19,Minimas!$A$15:$F$29,3),VLOOKUP(K19,Minimas!$A$15:$F$29,2))))),IF(H19<1999,VLOOKUP(K19,Minimas!$G$15:$L$29,6),IF(AND(H19>1998,H19<2002),VLOOKUP(K19,Minimas!$G$15:$L$29,5),IF(AND(H19>2001,H19<2004),VLOOKUP(K19,Minimas!$G$15:$L$29,4),IF(AND(H19>2003,H19<2006),VLOOKUP(K19,Minimas!$G$15:$L$29,3),VLOOKUP(K19,Minimas!$G$15:$L$29,2))))))) -> U17 F64 | W19: 68.21522823 | AB19: =T19-HLOOKUP(V19,Minimas!$C$3:$CD$12,2,FALSE) -> -5 | AC19: =T19-HLOOKUP(V19,Minimas!$C$3:$CD$12,3,FALSE) -> -15 | AD19: =T19-HLOOKUP(V19,Minimas!$C$3:$CD$12,4,FALSE) -> -25 | AE19: =T19-HLOOKUP(V19,Minimas!$C$3:$CD$12,5,FALSE) -> -37 | AF19: =T19-HLOOKUP(V19,Minimas!$C$3:$CD$12,6,FALSE) -> -52 | AG19: =T19-HLOOKUP(V19,Minimas!$C$3:$CD$12,7,FALSE) -> -65 | AH19: =T19-HLOOKUP(V19,Minimas!$C$3:$CD$12,8,FALSE) -> -80 | AI19: =T19-HLOOKUP(V19,Minimas!$C$3:$CD$12,9,FALSE) -> -95 | AJ19: =T19-HLOOKUP(V19,Minimas!$C$3:$CD$12,10,FALSE) -> -160 | AK19: DEB | AM19: DEB | AN19: -5
I20: =SUM(W19:W21) -> 68.21522823 | T20: =IF(E20="","",O20+S20) ->  | V20: =IF(E20=0," ",IF(E20="H",IF(H20<1999,VLOOKUP(K20,Minimas!$A$15:$F$29,6),IF(AND(H20>1998,H20<2002),VLOOKUP(K20,Minimas!$A$15:$F$29,5),IF(AND(H20>2001,H20<2004),VLOOKUP(K20,Minimas!$A$15:$F$29,4),IF(AND(H20>2003,H20<2006),VLOOKUP(K20,Minimas!$A$15:$F$29,3),VLOOKUP(K20,Minimas!$A$15:$F$29,2))))),IF(H20<1999,VLOOKUP(K20,Minimas!$G$15:$L$29,6),IF(AND(H20>1998,H20<2002),VLOOKUP(K20,Minimas!$G$15:$L$29,5),IF(AND(H20>2001,H20<2004),VLOOKUP(K20,Minimas!$G$15:$L$29,4),IF(AND(H20>2003,H20<2006),VLOOKUP(K20,Minimas!$G$15:$L$29,3),VLOOKUP(K20,Minimas!$G$15:$L$29,2))))))) ->  | AB20: =T20-HLOOKUP(V20,Minimas!$C$3:$CD$12,2,FALSE) ->  | AC20: =T20-HLOOKUP(V20,Minimas!$C$3:$CD$12,3,FALSE) ->  | AD20: =T20-HLOOKUP(V20,Minimas!$C$3:$CD$12,4,FALSE) ->  | AE20: =T20-HLOOKUP(V20,Minimas!$C$3:$CD$12,5,FALSE) ->  | AF20: =T20-HLOOKUP(V20,Minimas!$C$3:$CD$12,6,FALSE) ->  | AG20: =T20-HLOOKUP(V20,Minimas!$C$3:$CD$12,7,FALSE) ->  | AH20: =T20-HLOOKUP(V20,Minimas!$C$3:$CD$12,8,FALSE) ->  | AI20: =T20-HLOOKUP(V20,Minimas!$C$3:$CD$12,9,FALSE) ->  | AJ20: =T20-HLOOKUP(V20,Minimas!$C$3:$CD$12,10,FALSE) -> 
V21: =IF(E21=0," ",IF(E21="H",IF(H21<1999,VLOOKUP(K21,Minimas!$A$15:$F$29,6),IF(AND(H21>1998,H21<2002),VLOOKUP(K21,Minimas!$A$15:$F$29,5),IF(AND(H21>2001,H21<2004),VLOOKUP(K21,Minimas!$A$15:$F$29,4),IF(AND(H21>2003,H21<2006),VLOOKUP(K21,Minimas!$A$15:$F$29,3),VLOOKUP(K21,Minimas!$A$15:$F$29,2))))),IF(H21<1999,VLOOKUP(K21,Minimas!$G$15:$L$29,6),IF(AND(H21>1998,H21<2002),VLOOKUP(K21,Minimas!$G$15:$L$29,5),IF(AND(H21>2001,H21<2004),VLOOKUP(K21,Minimas!$G$15:$L$29,4),IF(AND(H21>2003,H21<2006),VLOOKUP(K21,Minimas!$G$15:$L$29,3),VLOOKUP(K21,Minimas!$G$15:$L$29,2))))))) ->  | AB21: =T21-HLOOKUP(V21,Minimas!$C$3:$CD$12,2,FALSE) ->  | AC21: =T21-HLOOKUP(V21,Minimas!$C$3:$CD$12,3,FALSE) ->  | AD21: =T21-HLOOKUP(V21,Minimas!$C$3:$CD$12,4,FALSE) ->  | AE21: =T21-HLOOKUP(V21,Minimas!$C$3:$CD$12,5,FALSE) ->  | AF21: =T21-HLOOKUP(V21,Minimas!$C$3:$CD$12,6,FALSE) ->  | AG21: =T21-HLOOKUP(V21,Minimas!$C$3:$CD$12,7,FALSE) ->  | AH21: =T21-HLOOKUP(V21,Minimas!$C$3:$CD$12,8,FALSE) ->  | AI21: =T21-HLOOKUP(V21,Minimas!$C$3:$CD$12,9,FALSE) ->  | AJ21: =T21-HLOOKUP(V21,Minimas!$C$3:$CD$12,10,FALSE) -> 
AB22: DEB | AC22: DEP + | AD22: REG + | AE22: IRG + | AF22: FED + | AG22: NAT + | AH22: INTB + | AI22: INTA + | AJ22: OLY +
B23: NAQ | T23: =IF(E23="","",O23+S23) ->  | V23: =IF(E23=0," ",IF(E23="H",IF(H23<1999,VLOOKUP(K23,Minimas!$A$15:$F$29,6),IF(AND(H23>1998,H23<2002),VLOOKUP(K23,Minimas!$A$15:$F$29,5),IF(AND(H23>2001,H23<2004),VLOOKUP(K23,Minimas!$A$15:$F$29,4),IF(AND(H23>2003,H23<2006),VLOOKUP(K23,Minimas!$A$15:$F$29,3),VLOOKUP(K23,Minimas!$A$15:$F$29,2))))),IF(H23<1999,VLOOKUP(K23,Minimas!$G$15:$L$29,6),IF(AND(H23>1998,H23<2002),VLOOKUP(K23,Minimas!$G$15:$L$29,5),IF(AND(H23>2001,H23<2004),VLOOKUP(K23,Minimas!$G$15:$L$29,4),IF(AND(H23>2003,H23<2006),VLOOKUP(K23,Minimas!$G$15:$L$29,3),VLOOKUP(K23,Minimas!$G$15:$L$29,2))))))) ->  | AB23: =T23-HLOOKUP(V23,Minimas!$C$3:$CD$12,2,FALSE) ->  | AC23: =T23-HLOOKUP(V23,Minimas!$C$3:$CD$12,3,FALSE) ->  | AD23: =T23-HLOOKUP(V23,Minimas!$C$3:$CD$12,4,FALSE) ->  | AE23: =T23-HLOOKUP(V23,Minimas!$C$3:$CD$12,5,FALSE) ->  | AF23: =T23-HLOOKUP(V23,Minimas!$C$3:$CD$12,6,FALSE) ->  | AG23: =T23-HLOOKUP(V23,Minimas!$C$3:$CD$12,7,FALSE) ->  | AH23: =T23-HLOOKUP(V23,Minimas!$C$3:$CD$12,8,FALSE) ->  | AI23: =T23-HLOOKUP(V23,Minimas!$C$3:$CD$12,9,FALSE) ->  | AJ23: =T23-HLOOKUP(V23,Minimas!$C$3:$CD$12,10,FALSE) -> 
I24: =SUM(W23:W25) -> 0 | T24: =IF(E24="","",O24+S24) ->  | V24: =IF(E24=0," ",IF(E24="H",IF(H24<1999,VLOOKUP(K24,Minimas!$A$15:$F$29,6),IF(AND(H24>1998,H24<2002),VLOOKUP(K24,Minimas!$A$15:$F$29,5),IF(AND(H24>2001,H24<2004),VLOOKUP(K24,Minimas!$A$15:$F$29,4),IF(AND(H24>2003,H24<2006),VLOOKUP(K24,Minimas!$A$15:$F$29,3),VLOOKUP(K24,Minimas!$A$15:$F$29,2))))),IF(H24<1999,VLOOKUP(K24,Minimas!$G$15:$L$29,6),IF(AND(H24>1998,H24<2002),VLOOKUP(K24,Minimas!$G$15:$L$29,5),IF(AND(H24>2001,H24<2004),VLOOKUP(K24,Minimas!$G$15:$L$29,4),IF(AND(H24>2003,H24<2006),VLOOKUP(K24,Minimas!$G$15:$L$29,3),VLOOKUP(K24,Minimas!$G$15:$L$29,2))))))) ->  | AB24: =T24-HLOOKUP(V24,Minimas!$C$3:$CD$12,2,FALSE) ->  | AC24: =T24-HLOOKUP(V24,Minimas!$C$3:$CD$12,3,FALSE) ->  | AD24: =T24-HLOOKUP(V24,Minimas!$C$3:$CD$12,4,FALSE) ->  | AE24: =T24-HLOOKUP(V24,Minimas!$C$3:$CD$12,5,FALSE) ->  | AF24: =T24-HLOOKUP(V24,Minimas!$C$3:$CD$12,6,FALSE) ->  | AG24: =T24-HLOOKUP(V24,Minimas!$C$3:$CD$12,7,FALSE) ->  | AH24: =T24-HLOOKUP(V24,Minimas!$C$3:$CD$12,8,FALSE) ->  | AI24: =T24-HLOOKUP(V24,Minimas!$C$3:$CD$12,9,FALSE) ->  | AJ24: =T24-HLOOKUP(V24,Minimas!$C$3:$CD$12,10,FALSE) -> 
V25: =IF(E25=0," ",IF(E25="H",IF(H25<1999,VLOOKUP(K25,Minimas!$A$15:$F$29,6),IF(AND(H25>1998,H25<2002),VLOOKUP(K25,Minimas!$A$15:$F$29,5),IF(AND(H25>2001,H25<2004),VLOOKUP(K25,Minimas!$A$15:$F$29,4),IF(AND(H25>2003,H25<2006),VLOOKUP(K25,Minimas!$A$15:$F$29,3),VLOOKUP(K25,Minimas!$A$15:$F$29,2))))),IF(H25<1999,VLOOKUP(K25,Minimas!$G$15:$L$29,6),IF(AND(H25>1998,H25<2002),VLOOKUP(K25,Minimas!$G$15:$L$29,5),IF(AND(H25>2001,H25<2004),VLOOKUP(K25,Minimas!$G$15:$L$29,4),IF(AND(H25>2003,H25<2006),VLOOKUP(K25,Minimas!$G$15:$L$29,3),VLOOKUP(K25,Minimas!$G$15:$L$29,2))))))) ->  | AB25: =T25-HLOOKUP(V25,Minimas!$C$3:$CD$12,2,FALSE) ->  | AC25: =T25-HLOOKUP(V25,Minimas!$C$3:$CD$12,3,FALSE) ->  | AD25: =T25-HLOOKUP(V25,Minimas!$C$3:$CD$12,4,FALSE) ->  | AE25: =T25-HLOOKUP(V25,Minimas!$C$3:$CD$12,5,FALSE) ->  | AF25: =T25-HLOOKUP(V25,Minimas!$C$3:$CD$12,6,FALSE) ->  | AG25: =T25-HLOOKUP(V25,Minimas!$C$3:$CD$12,7,FALSE) ->  | AH25: =T25-HLOOKUP(V25,Minimas!$C$3:$CD$12,8,FALSE) ->  | AI25: =T25-HLOOKUP(V25,Minimas!$C$3:$CD$12,9,FALSE) ->  | AJ25: =T25-HLOOKUP(V25,Minimas!$C$3:$CD$12,10,FALSE) -> 
AB26: DEB | AC26: DEP + | AD26: REG + | AE26: IRG + | AF26: FED + | AG26: NAT + | AH26: INTB + | AI26: INTA + | AJ26: OLY +
B27: NAQ | T27: =IF(E27="","",O27+S27) ->  | V27: =IF(E27=0," ",IF(E27="H",IF(H27<1999,VLOOKUP(K27,Minimas!$A$15:$F$29,6),IF(AND(H27>1998,H27<2002),VLOOKUP(K27,Minimas!$A$15:$F$29,5),IF(AND(H27>2001,H27<2004),VLOOKUP(K27,Minimas!$A$15:$F$29,4),IF(AND(H27>2003,H27<2006),VLOOKUP(K27,Minimas!$A$15:$F$29,3),VLOOKUP(K27,Minimas!$A$15:$F$29,2))))),IF(H27<1999,VLOOKUP(K27,Minimas!$G$15:$L$29,6),IF(AND(H27>1998,H27<2002),VLOOKUP(K27,Minimas!$G$15:$L$29,5),IF(AND(H27>2001,H27<2004),VLOOKUP(K27,Minimas!$G$15:$L$29,4),IF(AND(H27>2003,H27<2006),VLOOKUP(K27,Minimas!$G$15:$L$29,3),VLOOKUP(K27,Minimas!$G$15:$L$29,2))))))) ->  | AB27: =T27-HLOOKUP(V27,Minimas!$C$3:$CD$12,2,FALSE) ->  | AC27: =T27-HLOOKUP(V27,Minimas!$C$3:$CD$12,3,FALSE) ->  | AD27: =T27-HLOOKUP(V27,Minimas!$C$3:$CD$12,4,FALSE) ->  | AE27: =T27-HLOOKUP(V27,Minimas!$C$3:$CD$12,5,FALSE) ->  | AF27: =T27-HLOOKUP(V27,Minimas!$C$3:$CD$12,6,FALSE) ->  | AG27: =T27-HLOOKUP(V27,Minimas!$C$3:$CD$12,7,FALSE) ->  | AH27: =T27-HLOOKUP(V27,Minimas!$C$3:$CD$12,8,FALSE) ->  | AI27: =T27-HLOOKUP(V27,Minimas!$C$3:$CD$12,9,FALSE) ->  | AJ27: =T27-HLOOKUP(V27,Minimas!$C$3:$CD$12,10,FALSE) -> 
I28: =SUM(W27:W29) -> 0 | T28: =IF(E28="","",O28+S28) ->  | V28: =IF(E28=0," ",IF(E28="H",IF(H28<1999,VLOOKUP(K28,Minimas!$A$15:$F$29,6),IF(AND(H28>1998,H28<2002),VLOOKUP(K28,Minimas!$A$15:$F$29,5),IF(AND(H28>2001,H28<2004),VLOOKUP(K28,Minimas!$A$15:$F$29,4),IF(AND(H28>2003,H28<2006),VLOOKUP(K28,Minimas!$A$15:$F$29,3),VLOOKUP(K28,Minimas!$A$15:$F$29,2))))),IF(H28<1999,VLOOKUP(K28,Minimas!$G$15:$L$29,6),IF(AND(H28>1998,H28<2002),VLOOKUP(K28,Minimas!$G$15:$L$29,5),IF(AND(H28>2001,H28<2004),VLOOKUP(K28,Minimas!$G$15:$L$29,4),IF(AND(H28>2003,H28<2006),VLOOKUP(K28,Minimas!$G$15:$L$29,3),VLOOKUP(K28,Minimas!$G$15:$L$29,2))))))) ->  | AB28: =T28-HLOOKUP(V28,Minimas!$C$3:$CD$12,2,FALSE) ->  | AC28: =T28-HLOOKUP(V28,Minimas!$C$3:$CD$12,3,FALSE) ->  | AD28: =T28-HLOOKUP(V28,Minimas!$C$3:$CD$12,4,FALSE) ->  | AE28: =T28-HLOOKUP(V28,Minimas!$C$3:$CD$12,5,FALSE) ->  | AF28: =T28-HLOOKUP(V28,Minimas!$C$3:$CD$12,6,FALSE) ->  | AG28: =T28-HLOOKUP(V28,Minimas!$C$3:$CD$12,7,FALSE) ->  | AH28: =T28-HLOOKUP(V28,Minimas!$C$3:$CD$12,8,FALSE) ->  | AI28: =T28-HLOOKUP(V28,Minimas!$C$3:$CD$12,9,FALSE) ->  | AJ28: =T28-HLOOKUP(V28,Minimas!$C$3:$CD$12,10,FALSE) -> 
V29: =IF(E29=0," ",IF(E29="H",IF(H29<1999,VLOOKUP(K29,Minimas!$A$15:$F$29,6),IF(AND(H29>1998,H29<2002),VLOOKUP(K29,Minimas!$A$15:$F$29,5),IF(AND(H29>2001,H29<2004),VLOOKUP(K29,Minimas!$A$15:$F$29,4),IF(AND(H29>2003,H29<2006),VLOOKUP(K29,Minimas!$A$15:$F$29,3),VLOOKUP(K29,Minimas!$A$15:$F$29,2))))),IF(H29<1999,VLOOKUP(K29,Minimas!$G$15:$L$29,6),IF(AND(H29>1998,H29<2002),VLOOKUP(K29,Minimas!$G$15:$L$29,5),IF(AND(H29>2001,H29<2004),VLOOKUP(K29,Minimas!$G$15:$L$29,4),IF(AND(H29>2003,H29<2006),VLOOKUP(K29,Minimas!$G$15:$L$29,3),VLOOKUP(K29,Minimas!$G$15:$L$29,2))))))) ->  | AB29: =T29-HLOOKUP(V29,Minimas!$C$3:$CD$12,2,FALSE) ->  | AC29: =T29-HLOOKUP(V29,Minimas!$C$3:$CD$12,3,FALSE) ->  | AD29: =T29-HLOOKUP(V29,Minimas!$C$3:$CD$12,4,FALSE) ->  | AE29: =T29-HLOOKUP(V29,Minimas!$C$3:$CD$12,5,FALSE) ->  | AF29: =T29-HLOOKUP(V29,Minimas!$C$3:$CD$12,6,FALSE) ->  | AG29: =T29-HLOOKUP(V29,Minimas!$C$3:$CD$12,7,FALSE) ->  | AH29: =T29-HLOOKUP(V29,Minimas!$C$3:$CD$12,8,FALSE) ->  | AI29: =T29-HLOOKUP(V29,Minimas!$C$3:$CD$12,9,FALSE) ->  | AJ29: =T29-HLOOKUP(V29,Minimas!$C$3:$CD$12,10,FALSE) -> 
B31: Réserves / Observations / Records : | O31: N° licence | P31: Arbitre 1 | Q31: NOM / Prénom | U31: Signature
O32: N° licence | P32: Arbitre 2 | Q32: NOM / Prénom | U32: Signature
O33: N° licence | P33: Arbitre 3 | Q33: NOM / Prénom | U33: Signature
O34: N° licence | P34: Chrono | Q34: NOM / Prénom | U34: Signature
O35: N° licence | P35: Ctrl Tech | Q35: NOM / Prénom | U35: Signature
O36: N° licence | P36: Marshal | Q36: NOM / Prénom | U36: Signature
O37: N° licence | P37: Secrétaire | Q37: NOM / Prénom | U37: Signature
O38: N° licence | P38: Micro | Q38: NOM / Prénom | U38: Signature

Sheet Minimas (hidden)
C3: U15 F40 | D3: U15 F45 | E3: U15 F49 | F3: U15 F55 | G3: U15 F59 | H3: U15 F64 | I3: U15 F71 | J3: U15 F76 | K3: U15 F81 | L3: U15 F>81 | M3: U17 F40 | N3: U17 F45 | O3: U17 F49 | P3: U17 F55 | Q3: U17 F59 | R3: U17 F64 | S3: U17 F71 | T3: U17 F76 | U3: U17 F81 | V3: U17 F>81 | W3: U20 F45 | X3: U20 F49 | Y3: U20 F55 | Z3: U20 F59 | AA3: U20 F64 | AB3: U20 F71 | AC3: U20 F76 | AD3: U20 F81 | AE3: U20 F87 | AF3: U20 F>87 | AG3: SE F45 | AH3: SE F49 | AI3: SE F55 | AJ3: SE F59 | AK3: SE F64 | AL3: SE F71 | AM3: SE F76 | AN3: SE F81 | AO3: SE F87 | AP3: SE F>87 | AQ3: U15 M49 | AR3: U15 M55 | AS3: U15 M61 | AT3: U15 M67 | AU3: U15 M73 | AV3: U15 M81 | AW3: U15 M89 | AX3: U15 M96 | AY3: U15 M102 | AZ3: U15 M>102 | BA3: U17 M49 | BB3: U17 M55 | BC3: U17 M61 | BD3: U17 M67 | BE3: U17 M73 | BF3: U17 M81 | BG3: U17 M89 | BH3: U17 M96 | BI3: U17 M102 | BJ3: U17 M>102 | BK3: U20 M55 | BL3: U20 M61 | BM3: U20 M67 | BN3: U20 M73 | BO3: U20 M81 | BP3: U20 M89 | BQ3: U20 M96 | BR3: U20 M102 | BS3: U20 M109 | BT3: U20 M>109 | BU3: SE M55 | BV3: SE M61 | BW3: SE M67 | BX3: SE M73 | BY3: SE M81 | BZ3: SE M89 | CA3: SE M96 | CB3: SE M102 | CC3: SE M109 | CD3: SE M>109
B4: DEBUTANT | C4: 20 | D4: 25 | E4: 30 | F4: 35 | G4: 40 | H4: 45 | I4: 50 | J4: 55 | K4: 57 | L4: 60 | M4: 30 | N4: 35 | O4: 40 | P4: 45 | Q4: 50 | R4: 55 | S4: 60 | T4: 65 | U4: 67 | V4: 70 | W4: 40 | X4: 45 | Y4: 50 | Z4: 55 | AA4: 60 | AB4: 65 | AC4: 70 | AD4: 75 | AE4: 77 | AF4: 80 | AG4: 50 | AH4: 55 | AI4: 60 | AJ4: 65 | AK4: 70 | AL4: 75 | AM4: 80 | AN4: 85 | AO4: 87 | AP4: 90 | AQ4: 40 | AR4: 55 | AS4: 65 | AT4: 75 | AU4: 80 | AV4: 85 | AW4: 90 | AX4: 95 | AY4: 100 | AZ4: 105 | BA4: 50 | BB4: 65 | BC4: 80 | BD4: 90 | BE4: 100 | BF4: 110 | BG4: 115 | BH4: 120 | BI4: 125 | BJ4: 130 | BK4: 80 | BL4: 95 | BM4: 105 | BN4: 120 | BO4: 130 | BP4: 135 | BQ4: 140 | BR4: 145 | BS4: 150 | BT4: 155 | BU4: 95 | BV4: 110 | BW4: 125 | BX4: 135 | BY4: 145 | BZ4: 150 | CA4: 155 | CB4: 160 | CC4: 165 | CD4: 170
B5: DEPARTEMENTAL | C5: 25 | D5: 35 | E5: 40 | F5: 45 | G5: 50 | H5: 55 | I5: 60 | J5: 65 | K5: 67 | L5: 70 | M5: 35 | N5: 42 | O5: 50 | P5: 55 | Q5: 60 | R5: 65 | S5: 70 | T5: 75 | U5: 77 | V5: 80 | W5: 50 | X5: 55 | Y5: 62 | Z5: 70 | AA5: 75 | AB5: 80 | AC5: 85 | AD5: 90 | AE5: 92 | AF5: 95 | AG5: 60 | AH5: 67 | AI5: 75 | AJ5: 80 | AK5: 85 | AL5: 90 | AM5: 95 | AN5: 100 | AO5: 102 | AP5: 105 | AQ5: 55 | AR5: 70 | AS5: 80 | AT5: 95 | AU5: 100 | AV5: 105 | AW5: 110 | AX5: 115 | AY5: 120 | AZ5: 125 | BA5: 65 | BB5: 85 | BC5: 100 | BD5: 110 | BE5: 120 | BF5: 130 | BG5: 135 | BH5: 140 | BI5: 145 | BJ5: 150 | BK5: 100 | BL5: 115 | BM5: 125 | BN5: 140 | BO5: 150 | BP5: 160 | BQ5: 165 | BR5: 170 | BS5: 175 | BT5: 180 | BU5: 115 | BV5: 130 | BW5: 145 | BX5: 160 | BY5: 170 | BZ5: 175 | CA5: 180 | CB5: 185 | CC5: 190 | CD5: 195
B6: REGIONAL | C6: 35 | D6: 45 | E6: 50 | F6: 57 | G6: 62 | H6: 67 | I6: 72 | J6: 75 | K6: 77 | L6: 80 | M6: 45 | N6: 50 | O6: 57 | P6: 65 | Q6: 70 | R6: 75 | S6: 80 | T6: 85 | U6: 90 | V6: 95 | W6: 60 | X6: 65 | Y6: 75 | Z6: 82 | AA6: 90 | AB6: 95 | AC6: 100 | AD6: 105 | AE6: 107 | AF6: 110 | AG6: 70 | AH6: 80 | AI6: 87 | AJ6: 92 | AK6: 100 | AL6: 107 | AM6: 115 | AN6: 120 | AO6: 122 | AP6: 125 | AQ6: 70 | AR6: 85 | AS6: 100 | AT6: 110 | AU6: 120 | AV6: 130 | AW6: 135 | AX6: 140 | AY6: 145 | AZ6: 150 | BA6: 80 | BB6: 100 | BC6: 120 | BD6: 130 | BE6: 140 | BF6: 150 | BG6: 160 | BH6: 165 | BI6: 170 | BJ6: 175 | BK6: 115 | BL6: 130 | BM6: 150 | BN6: 160 | BO6: 170 | BP6: 180 | BQ6: 185 | BR6: 190 | BS6: 195 | BT6: 200 | BU6: 130 | BV6: 150 | BW6: 170 | BX6: 185 | BY6: 195 | BZ6: 200 | CA6: 205 | CB6: 210 | CC6: 215 | CD6: 220
B7: INTERREGIONAL | C7: 45 | D7: 55 | E7: 60 | F7: 67 | G7: 72 | H7: 77 | I7: 82 | J7: 85 | K7: 87 | L7: 90 | M7: 55 | N7: 60 | O7: 67 | P7: 77 | Q7: 82 | R7: 87 | S7: 92 | T7: 97 | U7: 100 | V7: 105 | W7: 70 | X7: 77 | Y7: 87 | Z7: 95 | AA7: 105 | AB7: 110 | AC7: 115 | AD7: 120 | AE7: 122 | AF7: 125 | AG7: 82 | AH7: 92 | AI7: 102 | AJ7: 107 | AK7: 117 | AL7: 122 | AM7: 130 | AN7: 135 | AO7: 137 | AP7: 140 | AQ7: 85 | AR7: 100 | AS7: 115 | AT7: 130 | AU7: 140 | AV7: 150 | AW7: 155 | AX7: 160 | AY7: 165 | AZ7: 170 | BA7: 95 | BB7: 115 | BC7: 135 | BD7: 150 | BE7: 160 | BF7: 170 | BG7: 180 | BH7: 185 | BI7: 190 | BJ7: 195 | BK7: 130 | BL7: 150 | BM7: 170 | BN7: 180 | BO7: 190 | BP7: 200 | BQ7: 210 | BR7: 215 | BS7: 220 | BT7: 225 | BU7: 145 | BV7: 170 | BW7: 195 | BX7: 210 | BY7: 220 | BZ7: 230 | CA7: 235 | CB7: 240 | CC7: 245 | CD7: 250
B8: FEDERAL | C8: 55 | D8: 65 | E8: 72 | F8: 82 | G8: 87 | H8: 92 | I8: 97 | J8: 100 | K8: 102 | L8: 105 | M8: 68 | N8: 75 | O8: 82 | P8: 92 | Q8: 97 | R8: 102 | S8: 107 | T8: 110 | U8: 112 | V8: 115 | W8: 83 | X8: 90 | Y8: 103 | Z8: 110 | AA8: 118 | AB8: 123 | AC8: 127 | AD8: 132 | AE8: 135 | AF8: 140 | AG8: 95 | AH8: 107 | AI8: 123 | AJ8: 130 | AK8: 137 | AL8: 142 | AM8: 147 | AN8: 150 | AO8: 152 | AP8: 155 | AQ8: 100 | AR8: 115 | AS8: 130 | AT8: 150 | AU8: 160 | AV8: 170 | AW8: 175 | AX8: 180 | AY8: 185 | AZ8: 190 | BA8: 110 | BB8: 130 | BC8: 150 | BD8: 170 | BE8: 180 | BF8: 190 | BG8: 200 | BH8: 205 | BI8: 210 | BJ8: 215 | BK8: 145 | BL8: 170 | BM8: 190 | BN8: 200 | BO8: 215 | BP8: 225 | BQ8: 230 | BR8: 240 | BS8: 245 | BT8: 250 | BU8: 170 | BV8: 195 | BW8: 225 | BX8: 240 | BY8: 250 | BZ8: 260 | CA8: 265 | CB8: 270 | CC8: 275 | CD8: 280
B9: NATIONAL | C9: 68 | D9: 78 | E9: 85 | F9: 95 | G9: 100 | H9: 105 | I9: 110 | J9: 115 | K9: 117 | L9: 120 | M9: 80 | N9: 88 | O9: 95 | P9: 105 | Q9: 110 | R9: 115 | S9: 120 | T9: 125 | U9: 130 | V9: 135 | W9: 97 | X9: 105 | Y9: 118 | Z9: 125 | AA9: 135 | AB9: 142 | AC9: 147 | AD9: 152 | AE9: 155 | AF9: 160 | AG9: 110 | AH9: 122 | AI9: 138 | AJ9: 145 | AK9: 155 | AL9: 165 | AM9: 170 | AN9: 172 | AO9: 175 | AP9: 180 | AQ9: 115 | AR9: 130 | AS9: 150 | AT9: 170 | AU9: 180 | AV9: 190 | AW9: 200 | AX9: 205 | AY9: 210 | AZ9: 215 | BA9: 125 | BB9: 145 | BC9: 170 | BD9: 190 | BE9: 200 | BF9: 210 | BG9: 220 | BH9: 225 | BI9: 230 | BJ9: 235 | BK9: 170 | BL9: 190 | BM9: 218 | BN9: 230 | BO9: 245 | BP9: 255 | BQ9: 260 | BR9: 270 | BS9: 275 | BT9: 280 | BU9: 190 | BV9: 215 | BW9: 240 | BX9: 260 | BY9: 275 | BZ9: 287 | CA9: 295 | CB9: 302 | CC9: 310 | CD9: 315
B10: INTERNATIONAL B | C10: 80 | D10: 90 | E10: 100 | F10: 110 | G10: 115 | H10: 120 | I10: 125 | J10: 130 | K10: 132 | L10: 135 | M10: 90 | N10: 100 | O10: 110 | P10: 120 | Q10: 125 | R10: 130 | S10: 135 | T10: 140 | U10: 145 | V10: 150 | W10: 110 | X10: 120 | Y10: 138 | Z10: 145 | AA10: 155 | AB10: 162 | AC10: 167 | AD10: 172 | AE10: 175 | AF10: 180 | AG10: 125 | AH10: 140 | AI10: 155 | AJ10: 165 | AK10: 175 | AL10: 185 | AM10: 190 | AN10: 192 | AO10: 195 | AP10: 200 | AQ10: 130 | AR10: 150 | AS10: 170 | AT10: 190 | AU10: 200 | AV10: 210 | AW10: 220 | AX10: 225 | AY10: 230 | AZ10: 235 | BA10: 140 | BB10: 170 | BC10: 190 | BD10: 210 | BE10: 220 | BF10: 230 | BG10: 240 | BH10: 250 | BI10: 255 | BJ10: 260 | BK10: 190 | BL10: 210 | BM10: 240 | BN10: 250 | BO10: 270 | BP10: 285 | BQ10: 290 | BR10: 300 | BS10: 305 | BT10: 310 | BU10: 210 | BV10: 235 | BW10: 260 | BX10: 280 | BY10: 295 | BZ10: 310 | CA10: 320 | CB10: 330 | CC10: 335 | CD10: 340
B11: INTERNATIONAL A | C11: 90 | D11: 105 | E11: 115 | F11: 125 | G11: 130 | H11: 135 | I11: 140 | J11: 145 | K11: 147 | L11: 150 | M11: 105 | N11: 115 | O11: 125 | P11: 135 | Q11: 140 | R11: 145 | S11: 150 | T11: 160 | U11: 165 | V11: 170 | W11: 130 | X11: 140 | Y11: 160 | Z11: 165 | AA11: 175 | AB11: 182 | AC11: 187 | AD11: 192 | AE11: 195 | AF11: 200 | AG11: 145 | AH11: 160 | AI11: 175 | AJ11: 185 | AK11: 195 | AL11: 205 | AM11: 210 | AN11: 212 | AO11: 215 | AP11: 220 | AQ11: 145 | AR11: 170 | AS11: 190 | AT11: 210 | AU11: 220 | AV11: 230 | AW11: 240 | AX11: 245 | AY11: 250 | AZ11: 255 | BA11: 155 | BB11: 190 | BC11: 210 | BD11: 230 | BE11: 240 | BF11: 260 | BG11: 270 | BH11: 280 | BI11: 285 | BJ11: 290 | BK11: 210 | BL11: 230 | BM11: 260 | BN11: 275 | BO11: 295 | BP11: 310 | BQ11: 315 | BR11: 325 | BS11: 330 | BT11: 335 | BU11: 230 | BV11: 260 | BW11: 280 | BX11: 300 | BY11: 320 | BZ11: 330 | CA11: 340 | CB11: 350 | CC11: 360 | CD11: 365
B12: OLYMPIQUE | C12: 175 | D12: 175 | E12: 175 | F12: 190 | G12: 200 | H12: 210 | I12: 225 | J12: 225 | K12: 230 | L12: 230 | M12: 175 | N12: 175 | O12: 175 | P12: 190 | Q12: 200 | R12: 210 | S12: 225 | T12: 225 | U12: 230 | V12: 230 | W12: 175 | X12: 175 | Y12: 190 | Z12: 200 | AA12: 210 | AB12: 225 | AC12: 225 | AD12: 230 | AE12: 230 | AF12: 235 | AG12: 175 | AH12: 175 | AI12: 190 | AJ12: 200 | AK12: 210 | AL12: 225 | AM12: 225 | AN12: 230 | AO12: 230 | AP12: 235 | AQ12: 275 | AR12: 275 | AS12: 275 | AT12: 295 | AU12: 315 | AV12: 335 | AW12: 360 | AX12: 360 | AY12: 380 | AZ12: 380 | BA12: 275 | BB12: 275 | BC12: 275 | BD12: 295 | BE12: 315 | BF12: 335 | BG12: 360 | BH12: 360 | BI12: 380 | BJ12: 380 | BK12: 275 | BL12: 275 | BM12: 295 | BN12: 315 | BO12: 335 | BP12: 360 | BQ12: 360 | BR12: 380 | BS12: 380 | BT12: 385 | BU12: 275 | BV12: 275 | BW12: 295 | BX12: 315 | BY12: 335 | BZ12: 360 | CA12: 360 | CB12: 380 | CC12: 380 | CD12: 385
B15: MINIME | C15: CADET | D15: CADET | E15: JUNIOR | F15: SENIOR | H15: MINIME | I15: CADETTE | J15: CADETTE | K15: JUNIOR | L15: SENIOR
A16: 10 | B16: NON | C16: U15 M49 | D16: U17 M49 | E16: U20 M55 | F16: SE M55 | G16: 10 | H16: NON | I16: U15 F40 | J16: U17 F40 | K16: U20 F45 | L16: SE F45
A17: 35.01 | B17: NON | C17: U15 M49 | D17: U17 M49 | E17: U20 M55 | F17: SE M55 | G17: 35.01 | H17: NON | I17: U15 F40 | J17: U17 F40 | K17: U20 F45 | L17: SE F45
A18: 40.01 | B18: NON | C18: U15 M49 | D18: U17 M49 | E18: U20 M55 | F18: SE M55 | G18: 40.01 | H18: NON | I18: U15 F45 | J18: U17 F45 | K18: U20 F45 | L18: SE F45
A19: 45.01 | B19: NON | C19: U15 M49 | D19: U17 M49 | E19: U20 M55 | F19: SE M55 | G19: 45.01 | H19: NON | I19: U15 F49 | J19: U17 F49 | K19: U20 F49 | L19: SE F49
A20: 49.01 | B20: NON | C20: U15 M55 | D20: U17 M55 | E20: U20 M55 | F20: SE M55 | G20: 49.01 | H20: NON | I20: U15 F55 | J20: U17 F55 | K20: U20 F55 | L20: SE F55
A21: 55.01 | B21: NON | C21: U15 M61 | D21: U17 M61 | E21: U20 M61 | F21: SE M61 | G21: 55.01 | H21: NON | I21: U15 F59 | J21: U17 F59 | K21: U20 F59 | L21: SE F59
A22: 61.01 | B22: NON | C22: U15 M67 | D22: U17 M67 | E22: U20 M67 | F22: SE M67 | G22: 59.01 | H22: NON | I22: U15 F64 | J22: U17 F64 | K22: U20 F64 | L22: SE F64
A23: 67.01 | B23: NON | C23: U15 M73 | D23: U17 M73 | E23: U20 M73 | F23: SE M73 | G23: 64.01 | H23: NON | I23: U15 F71 | J23: U17 F71 | K23: U20 F71 | L23: SE F71
A24: 73.01 | B24: NON | C24: U15 M81 | D24: U17 M81 | E24: U20 M81 | F24: SE M81 | G24: 71.01 | H24: NON | I24: U15 F76 | J24: U17 F76 | K24: U20 F76 | L24: SE F76
A25: 81.01 | B25: NON | C25: U15 M89 | D25: U17 M89 | E25: U20 M89 | F25: SE M89 | G25: 76.01 | H25: NON | I25: U15 F81 | J25: U17 F81 | K25: U20 F81 | L25: SE F81
A26: 89.01 | B26: NON | C26: U15 M96 | D26: U17 M96 | E26: U20 M96 | F26: SE M96 | G26: 81.01 | H26: NON | I26: U15 F>81 | J26: U17 F>81 | K26: U20 F87 | L26: SE F87
A27: 96.01 | B27: NON | C27: U15 M102 | D27: U17 M102 | E27: U20 M102 | F27: SE M102 | G27: 87.01 | H27: NON | I27: U15 F>81 | J27: U17 F>81 | K27: U20 F>87 | L27: SE F>87
A28: 102.01 | B28: NON | C28: U15 M>102 | D28: U17 M>102 | E28: U20 M109 | F28: SE M109
A29: 109.1 | B29: NON | C29: U15 M>102 | D29: U17 M>102 | E29: U20 M>109 | F29: SE M>109
